﻿Body Name ,Supp ID,,Supplier Name,Service Area Category ,Supp Grp,Period,Invoice Date,Unique Reference Number ,,Inv Amount,Account,Expenditure Description ,Cost C,Cost Centre Name,Posted Amount
Nottinghamshire Fire and Rescue Service,103874,Reflect Recruitment Group Limited,Reflect Recruitment Group Limited,Management & Support Services,5,202405,31/07/2023,9107499,-743.28 ,743.28 ,1005,Admin Agency Staff,2058,HR Support,619.40 
Nottinghamshire Fire and Rescue Service,103874,Reflect Recruitment Group Limited,Reflect Recruitment Group Limited,Management & Support Services,5,202405,26/06/2023,9107501,-924.41 ,924.41 ,1005,Admin Agency Staff,2058,HR Support,770.34 
Nottinghamshire Fire and Rescue Service,101001,Express Recruitment Ltd,Express Recruitment Ltd,Operational Responses,1,202405,02/08/2023,9107584,-698.76 ,698.76 ,1005,Admin Agency Staff,2005,Fire Control,582.30 
Nottinghamshire Fire and Rescue Service,101001,Express Recruitment Ltd,Express Recruitment Ltd,Operational Responses,1,202405,10/08/2023,9107704,-873.46 ,873.46 ,1005,Admin Agency Staff,2005,Fire Control,727.88 
Nottinghamshire Fire and Rescue Service,103874,Reflect Recruitment Group Limited,Reflect Recruitment Group Limited,Management & Support Services,5,202405,14/08/2023,9107741,-930.66 ,930.66 ,1005,Admin Agency Staff,2058,HR Support,775.55 
Nottinghamshire Fire and Rescue Service,101001,Express Recruitment Ltd,Express Recruitment Ltd,Operational Responses,1,202405,16/08/2023,9107836,-861.80 ,861.80 ,1005,Admin Agency Staff,2005,Fire Control,718.17 
Nottinghamshire Fire and Rescue Service,103874,Reflect Recruitment Group Limited,Reflect Recruitment Group Limited,Management & Support Services,5,202405,17/07/2023,9107843,-724.54 ,724.54 ,1005,Admin Agency Staff,2058,HR Support,603.78 
Nottinghamshire Fire and Rescue Service,103874,Reflect Recruitment Group Limited,Reflect Recruitment Group Limited,Management & Support Services,5,202405,26/06/2023,9107844,-924.41 ,924.41 ,1005,Admin Agency Staff,2058,HR Support,770.34 
Nottinghamshire Fire and Rescue Service,103874,Reflect Recruitment Group Limited,Reflect Recruitment Group Limited,Management & Support Services,5,202405,10/07/2023,9107845,-924.41 ,924.41 ,1005,Admin Agency Staff,2058,HR Support,770.34 
Nottinghamshire Fire and Rescue Service,103874,Reflect Recruitment Group Limited,Reflect Recruitment Group Limited,Management & Support Services,5,202405,03/07/2023,9107846,-924.41 ,924.41 ,1005,Admin Agency Staff,2058,HR Support,770.34 
Nottinghamshire Fire and Rescue Service,103874,Reflect Recruitment Group Limited,Reflect Recruitment Group Limited,Management & Support Services,5,202405,19/06/2023,9107847,-924.41 ,924.41 ,1005,Admin Agency Staff,2058,HR Support,770.34 
Nottinghamshire Fire and Rescue Service,103874,Reflect Recruitment Group Limited,Reflect Recruitment Group Limited,Management & Support Services,5,202405,17/07/2023,9107893,-724.54 ,724.54 ,1005,Admin Agency Staff,2058,HR Support,603.78 
Nottinghamshire Fire and Rescue Service,103874,Reflect Recruitment Group Limited,Reflect Recruitment Group Limited,Management & Support Services,5,202405,21/08/2023,9107928,-830.72 ,830.72 ,1005,Admin Agency Staff,2058,HR Support,692.27 
Nottinghamshire Fire and Rescue Service,100236,Asian Fire Service Association,Asian Fire Service Association,Management & Support Services,1,202405,22/07/2023,9107514,-300.00 ,300.00 ,1801,Training,2093,Command Suite,300.00 
Nottinghamshire Fire and Rescue Service,100778,Fire Service College Ltd,Fire Service College Ltd,Management & Support Services,4,202405,24/07/2023,9107517,"-6,048.00 ","6,048.00 ",1801,Training,2059,Corporate Training,"5,040.00 "
Nottinghamshire Fire and Rescue Service,100178,Skills For Justice,Skills For Justice,Management & Support Services,1,202405,31/07/2023,9107545,"-15,075.00 ","15,075.00 ",1801,Training,2059,Corporate Training,"15,075.00 "
Nottinghamshire Fire and Rescue Service,100178,Skills For Justice,Skills For Justice,Management & Support Services,1,202405,31/07/2023,9107547,"-1,675.00 ","1,675.00 ",1801,Training,2059,Corporate Training,"1,675.00 "
Nottinghamshire Fire and Rescue Service,103650,Carsington Sports & Leisure Limited,Carsington Sports & Leisure Limited,Management & Support Services,5,202405,05/08/2023,9107674,"-2,500.08 ","2,500.08 ",1801,Training,2059,Corporate Training,"2,083.40 "
Nottinghamshire Fire and Rescue Service,100236,Asian Fire Service Association,Asian Fire Service Association,Management & Support Services,1,202405,10/08/2023,9107679,-300.00 ,300.00 ,1801,Training,2093,Command Suite,300.00 
Nottinghamshire Fire and Rescue Service,103869,Shelagh Roberts,Shelagh Roberts,Management & Support Services,5,202405,29/06/2023,9107693,-320.00 ,320.00 ,1801,Training,2054,Equalities Team,320.00 
Nottinghamshire Fire and Rescue Service,103869,Shelagh Roberts,Shelagh Roberts,Management & Support Services,5,202405,03/08/2023,9107886,-290.00 ,290.00 ,1801,Training,2054,Equalities Team,290.00 
Nottinghamshire Fire and Rescue Service,100058,National Fire Chiefs Council,National Fire Chiefs Council,Management & Support Services,1,202405,29/08/2023,9107925,-900.00 ,900.00 ,1801,Training,2093,Command Suite,275.00 
Nottinghamshire Fire and Rescue Service,100058,National Fire Chiefs Council,National Fire Chiefs Council,Management & Support Services,1,202405,29/08/2023,9107925,-900.00 ,900.00 ,1801,Training,2093,Command Suite,475.00 
Nottinghamshire Fire and Rescue Service,102123,The Institution Of Fire Engineers,The Institution Of Fire Engineers,Management & Support Services,1,202405,30/08/2023,9107930,"-1,432.00 ","1,432.00 ",1801,Training,2059,Corporate Training,"1,432.00 "
Nottinghamshire Fire and Rescue Service,100236,Asian Fire Service Association,Asian Fire Service Association,Management & Support Services,1,202405,07/08/2023,9107885,-720.00 ,720.00 ,1804,Training - Inclusion,2054,Equalities Team,295.00 
Nottinghamshire Fire and Rescue Service,100236,Asian Fire Service Association,Asian Fire Service Association,Management & Support Services,1,202405,07/08/2023,9107885,-720.00 ,720.00 ,1804,Training - Inclusion,2054,Equalities Team,425.00 
Nottinghamshire Fire and Rescue Service,101000,C F S Messing Account Stockhill,C F S Messing Account Stockhill,Operational Responses,8,202405,31/07/2023,9107922,-255.00 ,255.00 ,1814,Spoilt Meal Reimbursement,1020,Stockhill,255.00 
Nottinghamshire Fire and Rescue Service,100557,NCC Sundry Debtors,NCC Sundry Debtors,Management & Support Services,4,202405,04/08/2023,9107680,"-1,074.60 ","1,074.60 ",1850,Recruitment Advertising,2049,Professional Support,895.50 
Nottinghamshire Fire and Rescue Service,104292,Macildowie Associates Ltd,Macildowie Associates Ltd,Management & Support Services,5,202405,06/08/2023,9107705,"-1,585.08 ","1,585.08 ",1850,Recruitment Advertising,2049,Professional Support,"1,320.90 "
Nottinghamshire Fire and Rescue Service,102874,NCC Pension Fund,NCC Pension Fund,Operational Responses,1,202405,30/06/2023,9107715,"-4,526.11 ","4,526.11 ",1906,Local Government Pension Strain,2074,Operational Training,"4,526.11 "
Nottinghamshire Fire and Rescue Service,102211,Promotional Displays & Signs Company,Promotional Displays & Signs Company,Operational Responses,1,202405,17/07/2023,9107497,-422.40 ,422.40 ,2000,Buildings Repairs and Maintenance - Reactive,1027,Carlton,352.00 
Nottinghamshire Fire and Rescue Service,100357,Eastern Shires Purchasing Organisation,Eastern Shires Purchasing Organisation,Operational Responses,1,202405,14/08/2023,9107727,-328.20 ,328.20 ,2000,Buildings Repairs and Maintenance - Reactive,1012,Retford,273.50 
Nottinghamshire Fire and Rescue Service,100357,Eastern Shires Purchasing Organisation,Eastern Shires Purchasing Organisation,Operational Responses,1,202405,14/08/2023,9107924,-264.30 ,264.30 ,2000,Buildings Repairs and Maintenance - Reactive,1029,Highfields Station,220.25 
Nottinghamshire Fire and Rescue Service,102280,Amptron Electrical Services,Amptron Electrical Services,Operational Responses,1,202405,30/01/2023,9107677,-391.68 ,391.68 ,2050,Building Maintenance - Planned,1029,Highfields Station,326.40 
Nottinghamshire Fire and Rescue Service,102280,Amptron Electrical Services,Amptron Electrical Services,Management & Support Services,1,202405,09/08/2023,9107738,"-4,924.94 ","4,924.94 ",2050,Building Maintenance - Planned,2087,Estates Department (Previously Premises),"4,104.12 "
Nottinghamshire Fire and Rescue Service,102280,Amptron Electrical Services,Amptron Electrical Services,Management & Support Services,1,202405,31/03/2023,9107739,"-22,721.64 ","22,721.64 ",2050,Building Maintenance - Planned,2087,Estates Department (Previously Premises),"18,934.70 "
Nottinghamshire Fire and Rescue Service,102280,Amptron Electrical Services,Amptron Electrical Services,Management & Support Services,1,202405,30/11/2022,9107740,"-30,000.00 ","30,000.00 ",2050,Building Maintenance - Planned,2087,Estates Department (Previously Premises),"25,000.00 "
Nottinghamshire Fire and Rescue Service,103837,BWT UK Limited,BWT UK Limited,Management & Support Services,5,202405,30/04/2023,9107865,-578.69 ,578.69 ,2050,Building Maintenance - Planned,2087,Estates Department (Previously Premises),482.25 
Nottinghamshire Fire and Rescue Service,102744,EDF Energy,EDF Energy,Operational Responses,1,202405,07/08/2023,9107789,"-26,672.05 ","26,672.05 ",2100,Electricity,1003,London Road,"3,512.68 "
Nottinghamshire Fire and Rescue Service,102744,EDF Energy,EDF Energy,Operational Responses,1,202405,07/08/2023,9107789,"-26,672.05 ","26,672.05 ",2100,Electricity,1012,Retford,"2,383.26 "
Nottinghamshire Fire and Rescue Service,102744,EDF Energy,EDF Energy,Operational Responses,1,202405,07/08/2023,9107789,"-26,672.05 ","26,672.05 ",2100,Electricity,1016,Newark,"1,554.21 "
Nottinghamshire Fire and Rescue Service,102744,EDF Energy,EDF Energy,Operational Responses,1,202405,07/08/2023,9107789,"-26,672.05 ","26,672.05 ",2100,Electricity,1027,Carlton,"3,820.23 "
Nottinghamshire Fire and Rescue Service,102744,EDF Energy,EDF Energy,Operational Responses,1,202405,07/08/2023,9107789,"-26,672.05 ","26,672.05 ",2100,Electricity,1029,Highfields Station,"6,587.82 "
Nottinghamshire Fire and Rescue Service,102744,EDF Energy,EDF Energy,Management & Support Services,1,202405,07/08/2023,9107789,"-26,672.05 ","26,672.05 ",2100,Electricity,1030,Service Development Centre,"2,855.39 "
Nottinghamshire Fire and Rescue Service,102744,EDF Energy,EDF Energy,Management & Support Services,1,202405,07/08/2023,9107789,"-26,672.05 ","26,672.05 ",2100,Electricity,1035,Headquarters,"1,410.88 "
Nottinghamshire Fire and Rescue Service,102744,EDF Energy,EDF Energy,Management & Support Services,1,202405,07/08/2023,9107789,"-26,672.05 ","26,672.05 ",2100,Electricity,2087,Estates Department (Previously Premises),122.69 
Nottinghamshire Fire and Rescue Service,102744,EDF Energy,EDF Energy,Operational Responses,1,202405,18/07/2023,9107791,-432.06 ,432.06 ,2100,Electricity,1014,Southwell,411.49 
Nottinghamshire Fire and Rescue Service,102744,EDF Energy,EDF Energy,Operational Responses,1,202405,14/08/2023,9107792,"-5,803.29 ","5,803.29 ",2100,Electricity,1020,Stockhill,"4,836.08 "
Nottinghamshire Fire and Rescue Service,102744,EDF Energy,EDF Energy,Operational Responses,1,202405,19/07/2023,9107793,-433.97 ,433.97 ,2100,Electricity,1014,Southwell,413.30 
Nottinghamshire Fire and Rescue Service,102744,EDF Energy,EDF Energy,Operational Responses,1,202405,19/07/2023,9107794,"-2,068.79 ","2,068.79 ",2100,Electricity,1017,Bingham,"1,723.99 "
Nottinghamshire Fire and Rescue Service,102744,EDF Energy,EDF Energy,Operational Responses,1,202405,20/07/2023,9107795,-532.73 ,532.73 ,2100,Electricity,1014,Southwell,443.94 
Nottinghamshire Fire and Rescue Service,102744,EDF Energy,EDF Energy,Operational Responses,1,202405,21/07/2023,9107796,"-3,586.06 ","3,586.06 ",2100,Electricity,1006,Edwinstowe,"2,988.38 "
Nottinghamshire Fire and Rescue Service,102744,EDF Energy,EDF Energy,Operational Responses,1,202405,24/07/2023,9107797,"-3,339.50 ","3,339.50 ",2100,Electricity,1010,Harworth,"2,782.92 "
Nottinghamshire Fire and Rescue Service,102744,EDF Energy,EDF Energy,Operational Responses,1,202405,25/07/2023,9107798,"-5,089.37 ","5,089.37 ",2100,Electricity,1023,Stapleford,"4,241.14 "
Nottinghamshire Fire and Rescue Service,102744,EDF Energy,EDF Energy,Operational Responses,1,202405,28/07/2023,9107799,"-1,558.94 ","1,558.94 ",2100,Electricity,1011,Misterton,"1,299.12 "
Nottinghamshire Fire and Rescue Service,102744,EDF Energy,EDF Energy,Operational Responses,1,202405,31/07/2023,9107800,-372.36 ,372.36 ,2100,Electricity,1002,Blidworth,0.29 
Nottinghamshire Fire and Rescue Service,102744,EDF Energy,EDF Energy,Operational Responses,1,202405,31/07/2023,9107800,-372.36 ,372.36 ,2100,Electricity,1002,Blidworth,354.35 
Nottinghamshire Fire and Rescue Service,102744,EDF Energy,EDF Energy,Operational Responses,1,202405,31/07/2023,9107803,"-2,767.35 ","2,767.35 ",2100,Electricity,1001,Mansfield,10.42 
Nottinghamshire Fire and Rescue Service,102744,EDF Energy,EDF Energy,Operational Responses,1,202405,31/07/2023,9107803,"-2,767.35 ","2,767.35 ",2100,Electricity,1001,Mansfield,"2,297.44 "
Nottinghamshire Fire and Rescue Service,102744,EDF Energy,EDF Energy,Operational Responses,1,202405,31/07/2023,9107804,-975.53 ,975.53 ,2100,Electricity,1013,Tuxford,812.94 
Nottinghamshire Fire and Rescue Service,102744,EDF Energy,EDF Energy,Operational Responses,1,202405,31/07/2023,9107805,-578.44 ,578.44 ,2100,Electricity,1015,Collingham,0.55 
Nottinghamshire Fire and Rescue Service,102744,EDF Energy,EDF Energy,Operational Responses,1,202405,31/07/2023,9107805,-578.44 ,578.44 ,2100,Electricity,1015,Collingham,481.57 
Nottinghamshire Fire and Rescue Service,102744,EDF Energy,EDF Energy,Operational Responses,1,202405,31/07/2023,9107806,"-1,891.48 ","1,891.48 ",2100,Electricity,1026,Arnold,1.86 
Nottinghamshire Fire and Rescue Service,102744,EDF Energy,EDF Energy,Operational Responses,1,202405,31/07/2023,9107806,"-1,891.48 ","1,891.48 ",2100,Electricity,1026,Arnold,"1,574.69 "
Nottinghamshire Fire and Rescue Service,102744,EDF Energy,EDF Energy,Operational Responses,1,202405,31/07/2023,9107807,-543.37 ,543.37 ,2100,Electricity,1014,Southwell,452.81 
Nottinghamshire Fire and Rescue Service,102744,EDF Energy,EDF Energy,Operational Responses,1,202405,01/08/2023,9107808,"-1,899.73 ","1,899.73 ",2100,Electricity,1008,Worksop,"1,583.11 "
Nottinghamshire Fire and Rescue Service,102744,EDF Energy,EDF Energy,Operational Responses,1,202405,07/08/2023,9107809,-424.26 ,424.26 ,2100,Electricity,1028,East Leake,404.06 
Nottinghamshire Fire and Rescue Service,102744,EDF Energy,EDF Energy,Operational Responses,1,202405,08/08/2023,9107810,"-7,323.62 ","7,323.62 ",2100,Electricity,1005,Ashfield,3.95 
Nottinghamshire Fire and Rescue Service,102744,EDF Energy,EDF Energy,Operational Responses,1,202405,08/08/2023,9107810,"-7,323.62 ","7,323.62 ",2100,Electricity,1005,Ashfield,"6,099.73 "
Nottinghamshire Fire and Rescue Service,102744,EDF Energy,EDF Energy,Operational Responses,1,202405,08/08/2023,9107811,"-8,177.19 ","8,177.19 ",2100,Electricity,1005,Ashfield,"6,814.33 "
Nottinghamshire Fire and Rescue Service,102744,EDF Energy,EDF Energy,Operational Responses,1,202405,08/08/2023,9107812,-573.80 ,573.80 ,2100,Electricity,1007,Warsop,6.71 
Nottinghamshire Fire and Rescue Service,102744,EDF Energy,EDF Energy,Operational Responses,1,202405,08/08/2023,9107812,-573.80 ,573.80 ,2100,Electricity,1007,Warsop,472.57 
Nottinghamshire Fire and Rescue Service,102744,EDF Energy,EDF Energy,Operational Responses,1,202405,18/07/2023,9107779,428.10 ,-428.10 ,2100,Electricity,1014,Southwell,-407.71 
Nottinghamshire Fire and Rescue Service,102744,EDF Energy,EDF Energy,Operational Responses,1,202405,20/07/2023,9107780,539.56 ,-539.56 ,2100,Electricity,1014,Southwell,-449.63 
Nottinghamshire Fire and Rescue Service,102744,EDF Energy,EDF Energy,Operational Responses,1,202405,08/08/2023,9107781,"7,319.67 ","-7,319.67 ",2100,Electricity,1005,Ashfield,"-6,099.73 "
Nottinghamshire Fire and Rescue Service,102655,Nottingham City Council (City Treasurer),Nottingham City Council (City Treasurer),Operational Responses,1,202405,11/08/2023,9107784,"-1,299.90 ","1,299.90 ",2101,Gas,1003,London Road,-102.07 
Nottinghamshire Fire and Rescue Service,102655,Nottingham City Council (City Treasurer),Nottingham City Council (City Treasurer),Operational Responses,1,202405,11/08/2023,9107784,"-1,299.90 ","1,299.90 ",2101,Gas,1003,London Road,"1,185.32 "
Nottinghamshire Fire and Rescue Service,104098,Total Gas & Power Limited,Total Gas & Power Limited,Operational Responses,5,202405,11/08/2023,9107813,"-1,043.36 ","1,043.36 ",2101,Gas,1019,West Bridgford,869.45 
Nottinghamshire Fire and Rescue Service,104098,Total Gas & Power Limited,Total Gas & Power Limited,Operational Responses,5,202405,11/08/2023,9107814,-343.79 ,343.79 ,2101,Gas,1024,Eastwood,327.42 
Nottinghamshire Fire and Rescue Service,104098,Total Gas & Power Limited,Total Gas & Power Limited,Operational Responses,5,202405,11/08/2023,9107816,-766.27 ,766.27 ,2101,Gas,1026,Arnold,638.56 
Nottinghamshire Fire and Rescue Service,104098,Total Gas & Power Limited,Total Gas & Power Limited,Operational Responses,5,202405,11/08/2023,9107817,-425.24 ,425.24 ,2101,Gas,1029,Highfields Station,404.99 
Nottinghamshire Fire and Rescue Service,104098,Total Gas & Power Limited,Total Gas & Power Limited,Operational Responses,5,202405,11/08/2023,9107818,-611.16 ,611.16 ,2101,Gas,1001,Mansfield,509.30 
Nottinghamshire Fire and Rescue Service,104098,Total Gas & Power Limited,Total Gas & Power Limited,Operational Responses,5,202405,11/08/2023,9107820,-262.98 ,262.98 ,2101,Gas,1006,Edwinstowe,250.46 
Nottinghamshire Fire and Rescue Service,104098,Total Gas & Power Limited,Total Gas & Power Limited,Operational Responses,5,202405,11/08/2023,9107821,"-1,945.24 ","1,945.24 ",2101,Gas,1005,Ashfield,"1,621.04 "
Nottinghamshire Fire and Rescue Service,104098,Total Gas & Power Limited,Total Gas & Power Limited,Operational Responses,5,202405,11/08/2023,9107822,-417.94 ,417.94 ,2101,Gas,1010,Harworth,398.04 
Nottinghamshire Fire and Rescue Service,104098,Total Gas & Power Limited,Total Gas & Power Limited,Management & Support Services,5,202405,11/08/2023,9107828,-983.04 ,983.04 ,2101,Gas,1030,Service Development Centre,819.20 
Nottinghamshire Fire and Rescue Service,104098,Total Gas & Power Limited,Total Gas & Power Limited,Operational Responses,5,202405,11/08/2023,9107829,-438.35 ,438.35 ,2101,Gas,1020,Stockhill,417.48 
Nottinghamshire Fire and Rescue Service,104256,Advanced Demand Side Management Limited,Advanced Demand Side Management Limited,Operational Responses,5,202405,01/08/2023,9107782,"-5,450.66 ","5,450.66 ",2103,Water Rates,1001,Mansfield,-69.11 
Nottinghamshire Fire and Rescue Service,104256,Advanced Demand Side Management Limited,Advanced Demand Side Management Limited,Operational Responses,5,202405,01/08/2023,9107782,"-5,450.66 ","5,450.66 ",2103,Water Rates,1001,Mansfield,-2.59 
Nottinghamshire Fire and Rescue Service,104256,Advanced Demand Side Management Limited,Advanced Demand Side Management Limited,Operational Responses,5,202405,01/08/2023,9107782,"-5,450.66 ","5,450.66 ",2103,Water Rates,1001,Mansfield,32.94 
Nottinghamshire Fire and Rescue Service,104256,Advanced Demand Side Management Limited,Advanced Demand Side Management Limited,Operational Responses,5,202405,01/08/2023,9107782,"-5,450.66 ","5,450.66 ",2103,Water Rates,1001,Mansfield,34.04 
Nottinghamshire Fire and Rescue Service,104256,Advanced Demand Side Management Limited,Advanced Demand Side Management Limited,Operational Responses,5,202405,01/08/2023,9107782,"-5,450.66 ","5,450.66 ",2103,Water Rates,1001,Mansfield,39.82 
Nottinghamshire Fire and Rescue Service,104256,Advanced Demand Side Management Limited,Advanced Demand Side Management Limited,Operational Responses,5,202405,01/08/2023,9107782,"-5,450.66 ","5,450.66 ",2103,Water Rates,1001,Mansfield,41.14 
Nottinghamshire Fire and Rescue Service,104256,Advanced Demand Side Management Limited,Advanced Demand Side Management Limited,Operational Responses,5,202405,01/08/2023,9107782,"-5,450.66 ","5,450.66 ",2103,Water Rates,1002,Blidworth,-17.20 
Nottinghamshire Fire and Rescue Service,104256,Advanced Demand Side Management Limited,Advanced Demand Side Management Limited,Operational Responses,5,202405,01/08/2023,9107782,"-5,450.66 ","5,450.66 ",2103,Water Rates,1002,Blidworth,2.47 
Nottinghamshire Fire and Rescue Service,104256,Advanced Demand Side Management Limited,Advanced Demand Side Management Limited,Operational Responses,5,202405,01/08/2023,9107782,"-5,450.66 ","5,450.66 ",2103,Water Rates,1002,Blidworth,2.55 
Nottinghamshire Fire and Rescue Service,104256,Advanced Demand Side Management Limited,Advanced Demand Side Management Limited,Operational Responses,5,202405,01/08/2023,9107782,"-5,450.66 ","5,450.66 ",2103,Water Rates,1003,London Road,70.49 
Nottinghamshire Fire and Rescue Service,104256,Advanced Demand Side Management Limited,Advanced Demand Side Management Limited,Operational Responses,5,202405,01/08/2023,9107782,"-5,450.66 ","5,450.66 ",2103,Water Rates,1005,Ashfield,-68.45 
Nottinghamshire Fire and Rescue Service,104256,Advanced Demand Side Management Limited,Advanced Demand Side Management Limited,Operational Responses,5,202405,01/08/2023,9107782,"-5,450.66 ","5,450.66 ",2103,Water Rates,1005,Ashfield,54.90 
Nottinghamshire Fire and Rescue Service,104256,Advanced Demand Side Management Limited,Advanced Demand Side Management Limited,Operational Responses,5,202405,01/08/2023,9107782,"-5,450.66 ","5,450.66 ",2103,Water Rates,1005,Ashfield,56.74 
Nottinghamshire Fire and Rescue Service,104256,Advanced Demand Side Management Limited,Advanced Demand Side Management Limited,Operational Responses,5,202405,01/08/2023,9107782,"-5,450.66 ","5,450.66 ",2103,Water Rates,1006,Edwinstowe,-1.37 
Nottinghamshire Fire and Rescue Service,104256,Advanced Demand Side Management Limited,Advanced Demand Side Management Limited,Operational Responses,5,202405,01/08/2023,9107782,"-5,450.66 ","5,450.66 ",2103,Water Rates,1006,Edwinstowe,48.93 
Nottinghamshire Fire and Rescue Service,104256,Advanced Demand Side Management Limited,Advanced Demand Side Management Limited,Operational Responses,5,202405,01/08/2023,9107782,"-5,450.66 ","5,450.66 ",2103,Water Rates,1006,Edwinstowe,50.56 
Nottinghamshire Fire and Rescue Service,104256,Advanced Demand Side Management Limited,Advanced Demand Side Management Limited,Operational Responses,5,202405,01/08/2023,9107782,"-5,450.66 ","5,450.66 ",2103,Water Rates,1007,Warsop,-83.06 
Nottinghamshire Fire and Rescue Service,104256,Advanced Demand Side Management Limited,Advanced Demand Side Management Limited,Operational Responses,5,202405,01/08/2023,9107782,"-5,450.66 ","5,450.66 ",2103,Water Rates,1007,Warsop,17.94 
Nottinghamshire Fire and Rescue Service,104256,Advanced Demand Side Management Limited,Advanced Demand Side Management Limited,Operational Responses,5,202405,01/08/2023,9107782,"-5,450.66 ","5,450.66 ",2103,Water Rates,1007,Warsop,19.06 
Nottinghamshire Fire and Rescue Service,104256,Advanced Demand Side Management Limited,Advanced Demand Side Management Limited,Operational Responses,5,202405,01/08/2023,9107782,"-5,450.66 ","5,450.66 ",2103,Water Rates,1007,Warsop,19.88 
Nottinghamshire Fire and Rescue Service,104256,Advanced Demand Side Management Limited,Advanced Demand Side Management Limited,Operational Responses,5,202405,01/08/2023,9107782,"-5,450.66 ","5,450.66 ",2103,Water Rates,1007,Warsop,22.15 
Nottinghamshire Fire and Rescue Service,104256,Advanced Demand Side Management Limited,Advanced Demand Side Management Limited,Operational Responses,5,202405,01/08/2023,9107782,"-5,450.66 ","5,450.66 ",2103,Water Rates,1008,Worksop,-102.75 
Nottinghamshire Fire and Rescue Service,104256,Advanced Demand Side Management Limited,Advanced Demand Side Management Limited,Operational Responses,5,202405,01/08/2023,9107782,"-5,450.66 ","5,450.66 ",2103,Water Rates,1008,Worksop,12.63 
Nottinghamshire Fire and Rescue Service,104256,Advanced Demand Side Management Limited,Advanced Demand Side Management Limited,Operational Responses,5,202405,01/08/2023,9107782,"-5,450.66 ","5,450.66 ",2103,Water Rates,1008,Worksop,13.05 
Nottinghamshire Fire and Rescue Service,104256,Advanced Demand Side Management Limited,Advanced Demand Side Management Limited,Operational Responses,5,202405,01/08/2023,9107782,"-5,450.66 ","5,450.66 ",2103,Water Rates,1008,Worksop,77.74 
Nottinghamshire Fire and Rescue Service,104256,Advanced Demand Side Management Limited,Advanced Demand Side Management Limited,Operational Responses,5,202405,01/08/2023,9107782,"-5,450.66 ","5,450.66 ",2103,Water Rates,1010,Harworth,-23.39 
Nottinghamshire Fire and Rescue Service,104256,Advanced Demand Side Management Limited,Advanced Demand Side Management Limited,Operational Responses,5,202405,01/08/2023,9107782,"-5,450.66 ","5,450.66 ",2103,Water Rates,1011,Misterton,-94.80 
Nottinghamshire Fire and Rescue Service,104256,Advanced Demand Side Management Limited,Advanced Demand Side Management Limited,Operational Responses,5,202405,01/08/2023,9107782,"-5,450.66 ","5,450.66 ",2103,Water Rates,1011,Misterton,-15.29 
Nottinghamshire Fire and Rescue Service,104256,Advanced Demand Side Management Limited,Advanced Demand Side Management Limited,Operational Responses,5,202405,01/08/2023,9107782,"-5,450.66 ","5,450.66 ",2103,Water Rates,1011,Misterton,4.82 
Nottinghamshire Fire and Rescue Service,104256,Advanced Demand Side Management Limited,Advanced Demand Side Management Limited,Operational Responses,5,202405,01/08/2023,9107782,"-5,450.66 ","5,450.66 ",2103,Water Rates,1011,Misterton,7.33 
Nottinghamshire Fire and Rescue Service,104256,Advanced Demand Side Management Limited,Advanced Demand Side Management Limited,Operational Responses,5,202405,01/08/2023,9107782,"-5,450.66 ","5,450.66 ",2103,Water Rates,1012,Retford,-27.34 
Nottinghamshire Fire and Rescue Service,104256,Advanced Demand Side Management Limited,Advanced Demand Side Management Limited,Operational Responses,5,202405,01/08/2023,9107782,"-5,450.66 ","5,450.66 ",2103,Water Rates,1012,Retford,36.39 
Nottinghamshire Fire and Rescue Service,104256,Advanced Demand Side Management Limited,Advanced Demand Side Management Limited,Operational Responses,5,202405,01/08/2023,9107782,"-5,450.66 ","5,450.66 ",2103,Water Rates,1012,Retford,80.08 
Nottinghamshire Fire and Rescue Service,104256,Advanced Demand Side Management Limited,Advanced Demand Side Management Limited,Operational Responses,5,202405,01/08/2023,9107782,"-5,450.66 ","5,450.66 ",2103,Water Rates,1013,Tuxford,-46.72 
Nottinghamshire Fire and Rescue Service,104256,Advanced Demand Side Management Limited,Advanced Demand Side Management Limited,Operational Responses,5,202405,01/08/2023,9107782,"-5,450.66 ","5,450.66 ",2103,Water Rates,1013,Tuxford,21.50 
Nottinghamshire Fire and Rescue Service,104256,Advanced Demand Side Management Limited,Advanced Demand Side Management Limited,Operational Responses,5,202405,01/08/2023,9107782,"-5,450.66 ","5,450.66 ",2103,Water Rates,1013,Tuxford,66.22 
Nottinghamshire Fire and Rescue Service,104256,Advanced Demand Side Management Limited,Advanced Demand Side Management Limited,Operational Responses,5,202405,01/08/2023,9107782,"-5,450.66 ","5,450.66 ",2103,Water Rates,1014,Southwell,-24.94 
Nottinghamshire Fire and Rescue Service,104256,Advanced Demand Side Management Limited,Advanced Demand Side Management Limited,Operational Responses,5,202405,01/08/2023,9107782,"-5,450.66 ","5,450.66 ",2103,Water Rates,1014,Southwell,19.31 
Nottinghamshire Fire and Rescue Service,104256,Advanced Demand Side Management Limited,Advanced Demand Side Management Limited,Operational Responses,5,202405,01/08/2023,9107782,"-5,450.66 ","5,450.66 ",2103,Water Rates,1014,Southwell,19.95 
Nottinghamshire Fire and Rescue Service,104256,Advanced Demand Side Management Limited,Advanced Demand Side Management Limited,Operational Responses,5,202405,01/08/2023,9107782,"-5,450.66 ","5,450.66 ",2103,Water Rates,1015,Collingham,-28.91 
Nottinghamshire Fire and Rescue Service,104256,Advanced Demand Side Management Limited,Advanced Demand Side Management Limited,Operational Responses,5,202405,01/08/2023,9107782,"-5,450.66 ","5,450.66 ",2103,Water Rates,1015,Collingham,23.87 
Nottinghamshire Fire and Rescue Service,104256,Advanced Demand Side Management Limited,Advanced Demand Side Management Limited,Operational Responses,5,202405,01/08/2023,9107782,"-5,450.66 ","5,450.66 ",2103,Water Rates,1015,Collingham,23.92 
Nottinghamshire Fire and Rescue Service,104256,Advanced Demand Side Management Limited,Advanced Demand Side Management Limited,Operational Responses,5,202405,01/08/2023,9107782,"-5,450.66 ","5,450.66 ",2103,Water Rates,1016,Newark,2.68 
Nottinghamshire Fire and Rescue Service,104256,Advanced Demand Side Management Limited,Advanced Demand Side Management Limited,Operational Responses,5,202405,01/08/2023,9107782,"-5,450.66 ","5,450.66 ",2103,Water Rates,1016,Newark,81.69 
Nottinghamshire Fire and Rescue Service,104256,Advanced Demand Side Management Limited,Advanced Demand Side Management Limited,Operational Responses,5,202405,01/08/2023,9107782,"-5,450.66 ","5,450.66 ",2103,Water Rates,1016,Newark,93.83 
Nottinghamshire Fire and Rescue Service,104256,Advanced Demand Side Management Limited,Advanced Demand Side Management Limited,Operational Responses,5,202405,01/08/2023,9107782,"-5,450.66 ","5,450.66 ",2103,Water Rates,1017,Bingham,-2.32 
Nottinghamshire Fire and Rescue Service,104256,Advanced Demand Side Management Limited,Advanced Demand Side Management Limited,Operational Responses,5,202405,01/08/2023,9107782,"-5,450.66 ","5,450.66 ",2103,Water Rates,1017,Bingham,15.32 
Nottinghamshire Fire and Rescue Service,104256,Advanced Demand Side Management Limited,Advanced Demand Side Management Limited,Operational Responses,5,202405,01/08/2023,9107782,"-5,450.66 ","5,450.66 ",2103,Water Rates,1017,Bingham,15.84 
Nottinghamshire Fire and Rescue Service,104256,Advanced Demand Side Management Limited,Advanced Demand Side Management Limited,Operational Responses,5,202405,01/08/2023,9107782,"-5,450.66 ","5,450.66 ",2103,Water Rates,1019,West Bridgford,-211.56 
Nottinghamshire Fire and Rescue Service,104256,Advanced Demand Side Management Limited,Advanced Demand Side Management Limited,Operational Responses,5,202405,01/08/2023,9107782,"-5,450.66 ","5,450.66 ",2103,Water Rates,1019,West Bridgford,118.21 
Nottinghamshire Fire and Rescue Service,104256,Advanced Demand Side Management Limited,Advanced Demand Side Management Limited,Operational Responses,5,202405,01/08/2023,9107782,"-5,450.66 ","5,450.66 ",2103,Water Rates,1019,West Bridgford,190.36 
Nottinghamshire Fire and Rescue Service,104256,Advanced Demand Side Management Limited,Advanced Demand Side Management Limited,Operational Responses,5,202405,01/08/2023,9107782,"-5,450.66 ","5,450.66 ",2103,Water Rates,1020,Stockhill,-9.26 
Nottinghamshire Fire and Rescue Service,104256,Advanced Demand Side Management Limited,Advanced Demand Side Management Limited,Operational Responses,5,202405,01/08/2023,9107782,"-5,450.66 ","5,450.66 ",2103,Water Rates,1020,Stockhill,11.04 
Nottinghamshire Fire and Rescue Service,104256,Advanced Demand Side Management Limited,Advanced Demand Side Management Limited,Operational Responses,5,202405,01/08/2023,9107782,"-5,450.66 ","5,450.66 ",2103,Water Rates,1020,Stockhill,13.21 
Nottinghamshire Fire and Rescue Service,104256,Advanced Demand Side Management Limited,Advanced Demand Side Management Limited,Operational Responses,5,202405,01/08/2023,9107782,"-5,450.66 ","5,450.66 ",2103,Water Rates,1023,Stapleford,-89.99 
Nottinghamshire Fire and Rescue Service,104256,Advanced Demand Side Management Limited,Advanced Demand Side Management Limited,Operational Responses,5,202405,01/08/2023,9107782,"-5,450.66 ","5,450.66 ",2103,Water Rates,1023,Stapleford,47.37 
Nottinghamshire Fire and Rescue Service,104256,Advanced Demand Side Management Limited,Advanced Demand Side Management Limited,Operational Responses,5,202405,01/08/2023,9107782,"-5,450.66 ","5,450.66 ",2103,Water Rates,1023,Stapleford,48.94 
Nottinghamshire Fire and Rescue Service,104256,Advanced Demand Side Management Limited,Advanced Demand Side Management Limited,Operational Responses,5,202405,01/08/2023,9107782,"-5,450.66 ","5,450.66 ",2103,Water Rates,1024,Eastwood,-11.39 
Nottinghamshire Fire and Rescue Service,104256,Advanced Demand Side Management Limited,Advanced Demand Side Management Limited,Operational Responses,5,202405,01/08/2023,9107782,"-5,450.66 ","5,450.66 ",2103,Water Rates,1024,Eastwood,20.73 
Nottinghamshire Fire and Rescue Service,104256,Advanced Demand Side Management Limited,Advanced Demand Side Management Limited,Operational Responses,5,202405,01/08/2023,9107782,"-5,450.66 ","5,450.66 ",2103,Water Rates,1024,Eastwood,21.42 
Nottinghamshire Fire and Rescue Service,104256,Advanced Demand Side Management Limited,Advanced Demand Side Management Limited,Operational Responses,5,202405,01/08/2023,9107782,"-5,450.66 ","5,450.66 ",2103,Water Rates,1026,Arnold,-86.50 
Nottinghamshire Fire and Rescue Service,104256,Advanced Demand Side Management Limited,Advanced Demand Side Management Limited,Operational Responses,5,202405,01/08/2023,9107782,"-5,450.66 ","5,450.66 ",2103,Water Rates,1026,Arnold,90.89 
Nottinghamshire Fire and Rescue Service,104256,Advanced Demand Side Management Limited,Advanced Demand Side Management Limited,Operational Responses,5,202405,01/08/2023,9107782,"-5,450.66 ","5,450.66 ",2103,Water Rates,1026,Arnold,102.18 
Nottinghamshire Fire and Rescue Service,104256,Advanced Demand Side Management Limited,Advanced Demand Side Management Limited,Operational Responses,5,202405,01/08/2023,9107782,"-5,450.66 ","5,450.66 ",2103,Water Rates,1027,Carlton,-148.80 
Nottinghamshire Fire and Rescue Service,104256,Advanced Demand Side Management Limited,Advanced Demand Side Management Limited,Operational Responses,5,202405,01/08/2023,9107782,"-5,450.66 ","5,450.66 ",2103,Water Rates,1027,Carlton,24.51 
Nottinghamshire Fire and Rescue Service,104256,Advanced Demand Side Management Limited,Advanced Demand Side Management Limited,Operational Responses,5,202405,01/08/2023,9107782,"-5,450.66 ","5,450.66 ",2103,Water Rates,1027,Carlton,25.33 
Nottinghamshire Fire and Rescue Service,104256,Advanced Demand Side Management Limited,Advanced Demand Side Management Limited,Operational Responses,5,202405,01/08/2023,9107782,"-5,450.66 ","5,450.66 ",2103,Water Rates,1028,East Leake,2.40 
Nottinghamshire Fire and Rescue Service,104256,Advanced Demand Side Management Limited,Advanced Demand Side Management Limited,Operational Responses,5,202405,01/08/2023,9107782,"-5,450.66 ","5,450.66 ",2103,Water Rates,1029,Highfields Station,-264.10 
Nottinghamshire Fire and Rescue Service,104256,Advanced Demand Side Management Limited,Advanced Demand Side Management Limited,Operational Responses,5,202405,01/08/2023,9107782,"-5,450.66 ","5,450.66 ",2103,Water Rates,1029,Highfields Station,263.15 
Nottinghamshire Fire and Rescue Service,104256,Advanced Demand Side Management Limited,Advanced Demand Side Management Limited,Operational Responses,5,202405,01/08/2023,9107782,"-5,450.66 ","5,450.66 ",2103,Water Rates,1029,Highfields Station,271.92 
Nottinghamshire Fire and Rescue Service,104256,Advanced Demand Side Management Limited,Advanced Demand Side Management Limited,Management & Support Services,5,202405,01/08/2023,9107782,"-5,450.66 ","5,450.66 ",2103,Water Rates,1030,Service Development Centre,-413.13 
Nottinghamshire Fire and Rescue Service,104256,Advanced Demand Side Management Limited,Advanced Demand Side Management Limited,Management & Support Services,5,202405,01/08/2023,9107782,"-5,450.66 ","5,450.66 ",2103,Water Rates,1030,Service Development Centre,487.08 
Nottinghamshire Fire and Rescue Service,104256,Advanced Demand Side Management Limited,Advanced Demand Side Management Limited,Management & Support Services,5,202405,01/08/2023,9107782,"-5,450.66 ","5,450.66 ",2103,Water Rates,1030,Service Development Centre,503.31 
Nottinghamshire Fire and Rescue Service,104256,Advanced Demand Side Management Limited,Advanced Demand Side Management Limited,Management & Support Services,5,202405,01/08/2023,9107782,"-5,450.66 ","5,450.66 ",2103,Water Rates,1035,Headquarters,-305.96 
Nottinghamshire Fire and Rescue Service,104256,Advanced Demand Side Management Limited,Advanced Demand Side Management Limited,Management & Support Services,5,202405,01/08/2023,9107782,"-5,450.66 ","5,450.66 ",2103,Water Rates,1035,Headquarters,250.45 
Nottinghamshire Fire and Rescue Service,104256,Advanced Demand Side Management Limited,Advanced Demand Side Management Limited,Management & Support Services,5,202405,01/08/2023,9107782,"-5,450.66 ","5,450.66 ",2103,Water Rates,1035,Headquarters,258.80 
Nottinghamshire Fire and Rescue Service,104256,Advanced Demand Side Management Limited,Advanced Demand Side Management Limited,Prevention & Education,5,202405,01/08/2023,9107782,"-5,450.66 ","5,450.66 ",2103,Water Rates,1036,Clifton Community Safety Centre,-20.68 
Nottinghamshire Fire and Rescue Service,104256,Advanced Demand Side Management Limited,Advanced Demand Side Management Limited,Prevention & Education,5,202405,01/08/2023,9107782,"-5,450.66 ","5,450.66 ",2103,Water Rates,1036,Clifton Community Safety Centre,15.90 
Nottinghamshire Fire and Rescue Service,104256,Advanced Demand Side Management Limited,Advanced Demand Side Management Limited,Prevention & Education,5,202405,01/08/2023,9107782,"-5,450.66 ","5,450.66 ",2103,Water Rates,1036,Clifton Community Safety Centre,16.43 
Nottinghamshire Fire and Rescue Service,104256,Advanced Demand Side Management Limited,Advanced Demand Side Management Limited,Operational Responses,5,202405,12/06/2023,9107783,"-6,301.46 ","6,301.46 ",2103,Water Rates,1001,Mansfield,32.64 
Nottinghamshire Fire and Rescue Service,104256,Advanced Demand Side Management Limited,Advanced Demand Side Management Limited,Operational Responses,5,202405,12/06/2023,9107783,"-6,301.46 ","6,301.46 ",2103,Water Rates,1001,Mansfield,41.82 
Nottinghamshire Fire and Rescue Service,104256,Advanced Demand Side Management Limited,Advanced Demand Side Management Limited,Operational Responses,5,202405,12/06/2023,9107783,"-6,301.46 ","6,301.46 ",2103,Water Rates,1002,Blidworth,-3.11 
Nottinghamshire Fire and Rescue Service,104256,Advanced Demand Side Management Limited,Advanced Demand Side Management Limited,Operational Responses,5,202405,12/06/2023,9107783,"-6,301.46 ","6,301.46 ",2103,Water Rates,1002,Blidworth,-2.32 
Nottinghamshire Fire and Rescue Service,104256,Advanced Demand Side Management Limited,Advanced Demand Side Management Limited,Operational Responses,5,202405,12/06/2023,9107783,"-6,301.46 ","6,301.46 ",2103,Water Rates,1002,Blidworth,-1.64 
Nottinghamshire Fire and Rescue Service,104256,Advanced Demand Side Management Limited,Advanced Demand Side Management Limited,Operational Responses,5,202405,12/06/2023,9107783,"-6,301.46 ","6,301.46 ",2103,Water Rates,1002,Blidworth,-0.74 
Nottinghamshire Fire and Rescue Service,104256,Advanced Demand Side Management Limited,Advanced Demand Side Management Limited,Operational Responses,5,202405,12/06/2023,9107783,"-6,301.46 ","6,301.46 ",2103,Water Rates,1002,Blidworth,4.72 
Nottinghamshire Fire and Rescue Service,104256,Advanced Demand Side Management Limited,Advanced Demand Side Management Limited,Operational Responses,5,202405,12/06/2023,9107783,"-6,301.46 ","6,301.46 ",2103,Water Rates,1002,Blidworth,5.49 
Nottinghamshire Fire and Rescue Service,104256,Advanced Demand Side Management Limited,Advanced Demand Side Management Limited,Operational Responses,5,202405,12/06/2023,9107783,"-6,301.46 ","6,301.46 ",2103,Water Rates,1003,London Road,344.25 
Nottinghamshire Fire and Rescue Service,104256,Advanced Demand Side Management Limited,Advanced Demand Side Management Limited,Operational Responses,5,202405,12/06/2023,9107783,"-6,301.46 ","6,301.46 ",2103,Water Rates,1005,Ashfield,56.05 
Nottinghamshire Fire and Rescue Service,104256,Advanced Demand Side Management Limited,Advanced Demand Side Management Limited,Operational Responses,5,202405,12/06/2023,9107783,"-6,301.46 ","6,301.46 ",2103,Water Rates,1006,Edwinstowe,33.44 
Nottinghamshire Fire and Rescue Service,104256,Advanced Demand Side Management Limited,Advanced Demand Side Management Limited,Operational Responses,5,202405,12/06/2023,9107783,"-6,301.46 ","6,301.46 ",2103,Water Rates,1006,Edwinstowe,40.92 
Nottinghamshire Fire and Rescue Service,104256,Advanced Demand Side Management Limited,Advanced Demand Side Management Limited,Operational Responses,5,202405,12/06/2023,9107783,"-6,301.46 ","6,301.46 ",2103,Water Rates,1007,Warsop,20.19 
Nottinghamshire Fire and Rescue Service,104256,Advanced Demand Side Management Limited,Advanced Demand Side Management Limited,Operational Responses,5,202405,12/06/2023,9107783,"-6,301.46 ","6,301.46 ",2103,Water Rates,1010,Harworth,7.27 
Nottinghamshire Fire and Rescue Service,104256,Advanced Demand Side Management Limited,Advanced Demand Side Management Limited,Operational Responses,5,202405,12/06/2023,9107783,"-6,301.46 ","6,301.46 ",2103,Water Rates,1010,Harworth,33.18 
Nottinghamshire Fire and Rescue Service,104256,Advanced Demand Side Management Limited,Advanced Demand Side Management Limited,Operational Responses,5,202405,12/06/2023,9107783,"-6,301.46 ","6,301.46 ",2103,Water Rates,1011,Misterton,33.11 
Nottinghamshire Fire and Rescue Service,104256,Advanced Demand Side Management Limited,Advanced Demand Side Management Limited,Operational Responses,5,202405,12/06/2023,9107783,"-6,301.46 ","6,301.46 ",2103,Water Rates,1012,Retford,-34.81 
Nottinghamshire Fire and Rescue Service,104256,Advanced Demand Side Management Limited,Advanced Demand Side Management Limited,Operational Responses,5,202405,12/06/2023,9107783,"-6,301.46 ","6,301.46 ",2103,Water Rates,1012,Retford,-31.46 
Nottinghamshire Fire and Rescue Service,104256,Advanced Demand Side Management Limited,Advanced Demand Side Management Limited,Operational Responses,5,202405,12/06/2023,9107783,"-6,301.46 ","6,301.46 ",2103,Water Rates,1012,Retford,-26.99 
Nottinghamshire Fire and Rescue Service,104256,Advanced Demand Side Management Limited,Advanced Demand Side Management Limited,Operational Responses,5,202405,12/06/2023,9107783,"-6,301.46 ","6,301.46 ",2103,Water Rates,1012,Retford,17.96 
Nottinghamshire Fire and Rescue Service,104256,Advanced Demand Side Management Limited,Advanced Demand Side Management Limited,Operational Responses,5,202405,12/06/2023,9107783,"-6,301.46 ","6,301.46 ",2103,Water Rates,1012,Retford,43.93 
Nottinghamshire Fire and Rescue Service,104256,Advanced Demand Side Management Limited,Advanced Demand Side Management Limited,Operational Responses,5,202405,12/06/2023,9107783,"-6,301.46 ","6,301.46 ",2103,Water Rates,1013,Tuxford,-91.35 
Nottinghamshire Fire and Rescue Service,104256,Advanced Demand Side Management Limited,Advanced Demand Side Management Limited,Operational Responses,5,202405,12/06/2023,9107783,"-6,301.46 ","6,301.46 ",2103,Water Rates,1013,Tuxford,-79.92 
Nottinghamshire Fire and Rescue Service,104256,Advanced Demand Side Management Limited,Advanced Demand Side Management Limited,Operational Responses,5,202405,12/06/2023,9107783,"-6,301.46 ","6,301.46 ",2103,Water Rates,1013,Tuxford,-72.51 
Nottinghamshire Fire and Rescue Service,104256,Advanced Demand Side Management Limited,Advanced Demand Side Management Limited,Operational Responses,5,202405,12/06/2023,9107783,"-6,301.46 ","6,301.46 ",2103,Water Rates,1013,Tuxford,-38.31 
Nottinghamshire Fire and Rescue Service,104256,Advanced Demand Side Management Limited,Advanced Demand Side Management Limited,Operational Responses,5,202405,12/06/2023,9107783,"-6,301.46 ","6,301.46 ",2103,Water Rates,1013,Tuxford,-38.18 
Nottinghamshire Fire and Rescue Service,104256,Advanced Demand Side Management Limited,Advanced Demand Side Management Limited,Operational Responses,5,202405,12/06/2023,9107783,"-6,301.46 ","6,301.46 ",2103,Water Rates,1013,Tuxford,-36.99 
Nottinghamshire Fire and Rescue Service,104256,Advanced Demand Side Management Limited,Advanced Demand Side Management Limited,Operational Responses,5,202405,12/06/2023,9107783,"-6,301.46 ","6,301.46 ",2103,Water Rates,1014,Southwell,20.19 
Nottinghamshire Fire and Rescue Service,104256,Advanced Demand Side Management Limited,Advanced Demand Side Management Limited,Operational Responses,5,202405,12/06/2023,9107783,"-6,301.46 ","6,301.46 ",2103,Water Rates,1015,Collingham,23.75 
Nottinghamshire Fire and Rescue Service,104256,Advanced Demand Side Management Limited,Advanced Demand Side Management Limited,Operational Responses,5,202405,12/06/2023,9107783,"-6,301.46 ","6,301.46 ",2103,Water Rates,1016,Newark,-2.59 
Nottinghamshire Fire and Rescue Service,104256,Advanced Demand Side Management Limited,Advanced Demand Side Management Limited,Operational Responses,5,202405,12/06/2023,9107783,"-6,301.46 ","6,301.46 ",2103,Water Rates,1016,Newark,5.27 
Nottinghamshire Fire and Rescue Service,104256,Advanced Demand Side Management Limited,Advanced Demand Side Management Limited,Operational Responses,5,202405,12/06/2023,9107783,"-6,301.46 ","6,301.46 ",2103,Water Rates,1016,Newark,193.76 
Nottinghamshire Fire and Rescue Service,104256,Advanced Demand Side Management Limited,Advanced Demand Side Management Limited,Operational Responses,5,202405,12/06/2023,9107783,"-6,301.46 ","6,301.46 ",2103,Water Rates,1017,Bingham,16.63 
Nottinghamshire Fire and Rescue Service,104256,Advanced Demand Side Management Limited,Advanced Demand Side Management Limited,Operational Responses,5,202405,12/06/2023,9107783,"-6,301.46 ","6,301.46 ",2103,Water Rates,1019,West Bridgford,-27.02 
Nottinghamshire Fire and Rescue Service,104256,Advanced Demand Side Management Limited,Advanced Demand Side Management Limited,Operational Responses,5,202405,12/06/2023,9107783,"-6,301.46 ","6,301.46 ",2103,Water Rates,1019,West Bridgford,285.80 
Nottinghamshire Fire and Rescue Service,104256,Advanced Demand Side Management Limited,Advanced Demand Side Management Limited,Operational Responses,5,202405,12/06/2023,9107783,"-6,301.46 ","6,301.46 ",2103,Water Rates,1020,Stockhill,-5.88 
Nottinghamshire Fire and Rescue Service,104256,Advanced Demand Side Management Limited,Advanced Demand Side Management Limited,Operational Responses,5,202405,12/06/2023,9107783,"-6,301.46 ","6,301.46 ",2103,Water Rates,1020,Stockhill,-5.54 
Nottinghamshire Fire and Rescue Service,104256,Advanced Demand Side Management Limited,Advanced Demand Side Management Limited,Operational Responses,5,202405,12/06/2023,9107783,"-6,301.46 ","6,301.46 ",2103,Water Rates,1020,Stockhill,0.64 
Nottinghamshire Fire and Rescue Service,104256,Advanced Demand Side Management Limited,Advanced Demand Side Management Limited,Operational Responses,5,202405,12/06/2023,9107783,"-6,301.46 ","6,301.46 ",2103,Water Rates,1020,Stockhill,6.50 
Nottinghamshire Fire and Rescue Service,104256,Advanced Demand Side Management Limited,Advanced Demand Side Management Limited,Operational Responses,5,202405,12/06/2023,9107783,"-6,301.46 ","6,301.46 ",2103,Water Rates,1023,Stapleford,-47.36 
Nottinghamshire Fire and Rescue Service,104256,Advanced Demand Side Management Limited,Advanced Demand Side Management Limited,Operational Responses,5,202405,12/06/2023,9107783,"-6,301.46 ","6,301.46 ",2103,Water Rates,1023,Stapleford,-45.72 
Nottinghamshire Fire and Rescue Service,104256,Advanced Demand Side Management Limited,Advanced Demand Side Management Limited,Operational Responses,5,202405,12/06/2023,9107783,"-6,301.46 ","6,301.46 ",2103,Water Rates,1023,Stapleford,-40.67 
Nottinghamshire Fire and Rescue Service,104256,Advanced Demand Side Management Limited,Advanced Demand Side Management Limited,Operational Responses,5,202405,12/06/2023,9107783,"-6,301.46 ","6,301.46 ",2103,Water Rates,1023,Stapleford,-2.32 
Nottinghamshire Fire and Rescue Service,104256,Advanced Demand Side Management Limited,Advanced Demand Side Management Limited,Operational Responses,5,202405,12/06/2023,9107783,"-6,301.46 ","6,301.46 ",2103,Water Rates,1023,Stapleford,42.31 
Nottinghamshire Fire and Rescue Service,104256,Advanced Demand Side Management Limited,Advanced Demand Side Management Limited,Operational Responses,5,202405,12/06/2023,9107783,"-6,301.46 ","6,301.46 ",2103,Water Rates,1023,Stapleford,77.66 
Nottinghamshire Fire and Rescue Service,104256,Advanced Demand Side Management Limited,Advanced Demand Side Management Limited,Operational Responses,5,202405,12/06/2023,9107783,"-6,301.46 ","6,301.46 ",2103,Water Rates,1024,Eastwood,21.05 
Nottinghamshire Fire and Rescue Service,104256,Advanced Demand Side Management Limited,Advanced Demand Side Management Limited,Operational Responses,5,202405,12/06/2023,9107783,"-6,301.46 ","6,301.46 ",2103,Water Rates,1026,Arnold,386.65 
Nottinghamshire Fire and Rescue Service,104256,Advanced Demand Side Management Limited,Advanced Demand Side Management Limited,Operational Responses,5,202405,12/06/2023,9107783,"-6,301.46 ","6,301.46 ",2103,Water Rates,1027,Carlton,24.61 
Nottinghamshire Fire and Rescue Service,104256,Advanced Demand Side Management Limited,Advanced Demand Side Management Limited,Operational Responses,5,202405,12/06/2023,9107783,"-6,301.46 ","6,301.46 ",2103,Water Rates,1028,East Leake,4.01 
Nottinghamshire Fire and Rescue Service,104256,Advanced Demand Side Management Limited,Advanced Demand Side Management Limited,Operational Responses,5,202405,12/06/2023,9107783,"-6,301.46 ","6,301.46 ",2103,Water Rates,1028,East Leake,26.07 
Nottinghamshire Fire and Rescue Service,104256,Advanced Demand Side Management Limited,Advanced Demand Side Management Limited,Operational Responses,5,202405,12/06/2023,9107783,"-6,301.46 ","6,301.46 ",2103,Water Rates,1029,Highfields Station,310.45 
Nottinghamshire Fire and Rescue Service,104256,Advanced Demand Side Management Limited,Advanced Demand Side Management Limited,Management & Support Services,5,202405,12/06/2023,9107783,"-6,301.46 ","6,301.46 ",2103,Water Rates,1030,Service Development Centre,502.58 
Nottinghamshire Fire and Rescue Service,104256,Advanced Demand Side Management Limited,Advanced Demand Side Management Limited,Management & Support Services,5,202405,12/06/2023,9107783,"-6,301.46 ","6,301.46 ",2103,Water Rates,1035,Headquarters,258.85 
Nottinghamshire Fire and Rescue Service,104256,Advanced Demand Side Management Limited,Advanced Demand Side Management Limited,Prevention & Education,5,202405,12/06/2023,9107783,"-6,301.46 ","6,301.46 ",2103,Water Rates,1036,Clifton Community Safety Centre,16.63 
Nottinghamshire Fire and Rescue Service,104256,Advanced Demand Side Management Limited,Advanced Demand Side Management Limited,Operational Responses,5,202405,01/08/2023,9107782,"-5,450.66 ","5,450.66 ",2104,Sewerage and Environmental,1001,Mansfield,-177.97 
Nottinghamshire Fire and Rescue Service,104256,Advanced Demand Side Management Limited,Advanced Demand Side Management Limited,Operational Responses,5,202405,01/08/2023,9107782,"-5,450.66 ","5,450.66 ",2104,Sewerage and Environmental,1001,Mansfield,-46.66 
Nottinghamshire Fire and Rescue Service,104256,Advanced Demand Side Management Limited,Advanced Demand Side Management Limited,Operational Responses,5,202405,01/08/2023,9107782,"-5,450.66 ","5,450.66 ",2104,Sewerage and Environmental,1001,Mansfield,22.57 
Nottinghamshire Fire and Rescue Service,104256,Advanced Demand Side Management Limited,Advanced Demand Side Management Limited,Operational Responses,5,202405,01/08/2023,9107782,"-5,450.66 ","5,450.66 ",2104,Sewerage and Environmental,1001,Mansfield,23.33 
Nottinghamshire Fire and Rescue Service,104256,Advanced Demand Side Management Limited,Advanced Demand Side Management Limited,Operational Responses,5,202405,01/08/2023,9107782,"-5,450.66 ","5,450.66 ",2104,Sewerage and Environmental,1001,Mansfield,202.76 
Nottinghamshire Fire and Rescue Service,104256,Advanced Demand Side Management Limited,Advanced Demand Side Management Limited,Operational Responses,5,202405,01/08/2023,9107782,"-5,450.66 ","5,450.66 ",2104,Sewerage and Environmental,1001,Mansfield,209.52 
Nottinghamshire Fire and Rescue Service,104256,Advanced Demand Side Management Limited,Advanced Demand Side Management Limited,Operational Responses,5,202405,01/08/2023,9107782,"-5,450.66 ","5,450.66 ",2104,Sewerage and Environmental,1002,Blidworth,-21.65 
Nottinghamshire Fire and Rescue Service,104256,Advanced Demand Side Management Limited,Advanced Demand Side Management Limited,Operational Responses,5,202405,01/08/2023,9107782,"-5,450.66 ","5,450.66 ",2104,Sewerage and Environmental,1002,Blidworth,11.84 
Nottinghamshire Fire and Rescue Service,104256,Advanced Demand Side Management Limited,Advanced Demand Side Management Limited,Operational Responses,5,202405,01/08/2023,9107782,"-5,450.66 ","5,450.66 ",2104,Sewerage and Environmental,1002,Blidworth,12.23 
Nottinghamshire Fire and Rescue Service,104256,Advanced Demand Side Management Limited,Advanced Demand Side Management Limited,Operational Responses,5,202405,01/08/2023,9107782,"-5,450.66 ","5,450.66 ",2104,Sewerage and Environmental,1003,London Road,47.42 
Nottinghamshire Fire and Rescue Service,104256,Advanced Demand Side Management Limited,Advanced Demand Side Management Limited,Operational Responses,5,202405,01/08/2023,9107782,"-5,450.66 ","5,450.66 ",2104,Sewerage and Environmental,1005,Ashfield,-97.92 
Nottinghamshire Fire and Rescue Service,104256,Advanced Demand Side Management Limited,Advanced Demand Side Management Limited,Operational Responses,5,202405,01/08/2023,9107782,"-5,450.66 ","5,450.66 ",2104,Sewerage and Environmental,1005,Ashfield,88.90 
Nottinghamshire Fire and Rescue Service,104256,Advanced Demand Side Management Limited,Advanced Demand Side Management Limited,Operational Responses,5,202405,01/08/2023,9107782,"-5,450.66 ","5,450.66 ",2104,Sewerage and Environmental,1005,Ashfield,91.86 
Nottinghamshire Fire and Rescue Service,104256,Advanced Demand Side Management Limited,Advanced Demand Side Management Limited,Operational Responses,5,202405,01/08/2023,9107782,"-5,450.66 ","5,450.66 ",2104,Sewerage and Environmental,1006,Edwinstowe,-105.06 
Nottinghamshire Fire and Rescue Service,104256,Advanced Demand Side Management Limited,Advanced Demand Side Management Limited,Operational Responses,5,202405,01/08/2023,9107782,"-5,450.66 ","5,450.66 ",2104,Sewerage and Environmental,1006,Edwinstowe,136.74 
Nottinghamshire Fire and Rescue Service,104256,Advanced Demand Side Management Limited,Advanced Demand Side Management Limited,Operational Responses,5,202405,01/08/2023,9107782,"-5,450.66 ","5,450.66 ",2104,Sewerage and Environmental,1006,Edwinstowe,141.30 
Nottinghamshire Fire and Rescue Service,104256,Advanced Demand Side Management Limited,Advanced Demand Side Management Limited,Operational Responses,5,202405,01/08/2023,9107782,"-5,450.66 ","5,450.66 ",2104,Sewerage and Environmental,1007,Warsop,-55.96 
Nottinghamshire Fire and Rescue Service,104256,Advanced Demand Side Management Limited,Advanced Demand Side Management Limited,Operational Responses,5,202405,01/08/2023,9107782,"-5,450.66 ","5,450.66 ",2104,Sewerage and Environmental,1007,Warsop,12.57 
Nottinghamshire Fire and Rescue Service,104256,Advanced Demand Side Management Limited,Advanced Demand Side Management Limited,Operational Responses,5,202405,01/08/2023,9107782,"-5,450.66 ","5,450.66 ",2104,Sewerage and Environmental,1007,Warsop,13.33 
Nottinghamshire Fire and Rescue Service,104256,Advanced Demand Side Management Limited,Advanced Demand Side Management Limited,Operational Responses,5,202405,01/08/2023,9107782,"-5,450.66 ","5,450.66 ",2104,Sewerage and Environmental,1007,Warsop,13.89 
Nottinghamshire Fire and Rescue Service,104256,Advanced Demand Side Management Limited,Advanced Demand Side Management Limited,Operational Responses,5,202405,01/08/2023,9107782,"-5,450.66 ","5,450.66 ",2104,Sewerage and Environmental,1007,Warsop,15.41 
Nottinghamshire Fire and Rescue Service,104256,Advanced Demand Side Management Limited,Advanced Demand Side Management Limited,Operational Responses,5,202405,01/08/2023,9107782,"-5,450.66 ","5,450.66 ",2104,Sewerage and Environmental,1008,Worksop,-244.68 
Nottinghamshire Fire and Rescue Service,104256,Advanced Demand Side Management Limited,Advanced Demand Side Management Limited,Operational Responses,5,202405,01/08/2023,9107782,"-5,450.66 ","5,450.66 ",2104,Sewerage and Environmental,1008,Worksop,184.65 
Nottinghamshire Fire and Rescue Service,104256,Advanced Demand Side Management Limited,Advanced Demand Side Management Limited,Operational Responses,5,202405,01/08/2023,9107782,"-5,450.66 ","5,450.66 ",2104,Sewerage and Environmental,1008,Worksop,190.80 
Nottinghamshire Fire and Rescue Service,104256,Advanced Demand Side Management Limited,Advanced Demand Side Management Limited,Operational Responses,5,202405,01/08/2023,9107782,"-5,450.66 ","5,450.66 ",2104,Sewerage and Environmental,1008,Worksop,234.08 
Nottinghamshire Fire and Rescue Service,104256,Advanced Demand Side Management Limited,Advanced Demand Side Management Limited,Operational Responses,5,202405,01/08/2023,9107782,"-5,450.66 ","5,450.66 ",2104,Sewerage and Environmental,1010,Harworth,-16.21 
Nottinghamshire Fire and Rescue Service,104256,Advanced Demand Side Management Limited,Advanced Demand Side Management Limited,Operational Responses,5,202405,01/08/2023,9107782,"-5,450.66 ","5,450.66 ",2104,Sewerage and Environmental,1011,Misterton,-399.99 
Nottinghamshire Fire and Rescue Service,104256,Advanced Demand Side Management Limited,Advanced Demand Side Management Limited,Operational Responses,5,202405,01/08/2023,9107782,"-5,450.66 ","5,450.66 ",2104,Sewerage and Environmental,1011,Misterton,41.40 
Nottinghamshire Fire and Rescue Service,104256,Advanced Demand Side Management Limited,Advanced Demand Side Management Limited,Operational Responses,5,202405,01/08/2023,9107782,"-5,450.66 ","5,450.66 ",2104,Sewerage and Environmental,1012,Retford,-20.72 
Nottinghamshire Fire and Rescue Service,104256,Advanced Demand Side Management Limited,Advanced Demand Side Management Limited,Operational Responses,5,202405,01/08/2023,9107782,"-5,450.66 ","5,450.66 ",2104,Sewerage and Environmental,1012,Retford,27.03 
Nottinghamshire Fire and Rescue Service,104256,Advanced Demand Side Management Limited,Advanced Demand Side Management Limited,Operational Responses,5,202405,01/08/2023,9107782,"-5,450.66 ","5,450.66 ",2104,Sewerage and Environmental,1012,Retford,57.19 
Nottinghamshire Fire and Rescue Service,104256,Advanced Demand Side Management Limited,Advanced Demand Side Management Limited,Operational Responses,5,202405,01/08/2023,9107782,"-5,450.66 ","5,450.66 ",2104,Sewerage and Environmental,1012,Retford,106.42 
Nottinghamshire Fire and Rescue Service,104256,Advanced Demand Side Management Limited,Advanced Demand Side Management Limited,Operational Responses,5,202405,01/08/2023,9107782,"-5,450.66 ","5,450.66 ",2104,Sewerage and Environmental,1013,Tuxford,-137.00 
Nottinghamshire Fire and Rescue Service,104256,Advanced Demand Side Management Limited,Advanced Demand Side Management Limited,Operational Responses,5,202405,01/08/2023,9107782,"-5,450.66 ","5,450.66 ",2104,Sewerage and Environmental,1013,Tuxford,119.56 
Nottinghamshire Fire and Rescue Service,104256,Advanced Demand Side Management Limited,Advanced Demand Side Management Limited,Operational Responses,5,202405,01/08/2023,9107782,"-5,450.66 ","5,450.66 ",2104,Sewerage and Environmental,1013,Tuxford,153.98 
Nottinghamshire Fire and Rescue Service,104256,Advanced Demand Side Management Limited,Advanced Demand Side Management Limited,Operational Responses,5,202405,01/08/2023,9107782,"-5,450.66 ","5,450.66 ",2104,Sewerage and Environmental,1014,Southwell,-90.99 
Nottinghamshire Fire and Rescue Service,104256,Advanced Demand Side Management Limited,Advanced Demand Side Management Limited,Operational Responses,5,202405,01/08/2023,9107782,"-5,450.66 ","5,450.66 ",2104,Sewerage and Environmental,1014,Southwell,87.24 
Nottinghamshire Fire and Rescue Service,104256,Advanced Demand Side Management Limited,Advanced Demand Side Management Limited,Operational Responses,5,202405,01/08/2023,9107782,"-5,450.66 ","5,450.66 ",2104,Sewerage and Environmental,1014,Southwell,90.15 
Nottinghamshire Fire and Rescue Service,104256,Advanced Demand Side Management Limited,Advanced Demand Side Management Limited,Operational Responses,5,202405,01/08/2023,9107782,"-5,450.66 ","5,450.66 ",2104,Sewerage and Environmental,1015,Collingham,-71.76 
Nottinghamshire Fire and Rescue Service,104256,Advanced Demand Side Management Limited,Advanced Demand Side Management Limited,Operational Responses,5,202405,01/08/2023,9107782,"-5,450.66 ","5,450.66 ",2104,Sewerage and Environmental,1015,Collingham,68.44 
Nottinghamshire Fire and Rescue Service,104256,Advanced Demand Side Management Limited,Advanced Demand Side Management Limited,Operational Responses,5,202405,01/08/2023,9107782,"-5,450.66 ","5,450.66 ",2104,Sewerage and Environmental,1015,Collingham,70.16 
Nottinghamshire Fire and Rescue Service,104256,Advanced Demand Side Management Limited,Advanced Demand Side Management Limited,Operational Responses,5,202405,01/08/2023,9107782,"-5,450.66 ","5,450.66 ",2104,Sewerage and Environmental,1016,Newark,183.90 
Nottinghamshire Fire and Rescue Service,104256,Advanced Demand Side Management Limited,Advanced Demand Side Management Limited,Operational Responses,5,202405,01/08/2023,9107782,"-5,450.66 ","5,450.66 ",2104,Sewerage and Environmental,1016,Newark,391.27 
Nottinghamshire Fire and Rescue Service,104256,Advanced Demand Side Management Limited,Advanced Demand Side Management Limited,Operational Responses,5,202405,01/08/2023,9107782,"-5,450.66 ","5,450.66 ",2104,Sewerage and Environmental,1016,Newark,410.58 
Nottinghamshire Fire and Rescue Service,104256,Advanced Demand Side Management Limited,Advanced Demand Side Management Limited,Operational Responses,5,202405,01/08/2023,9107782,"-5,450.66 ","5,450.66 ",2104,Sewerage and Environmental,1017,Bingham,-75.93 
Nottinghamshire Fire and Rescue Service,104256,Advanced Demand Side Management Limited,Advanced Demand Side Management Limited,Operational Responses,5,202405,01/08/2023,9107782,"-5,450.66 ","5,450.66 ",2104,Sewerage and Environmental,1017,Bingham,84.59 
Nottinghamshire Fire and Rescue Service,104256,Advanced Demand Side Management Limited,Advanced Demand Side Management Limited,Operational Responses,5,202405,01/08/2023,9107782,"-5,450.66 ","5,450.66 ",2104,Sewerage and Environmental,1017,Bingham,87.41 
Nottinghamshire Fire and Rescue Service,104256,Advanced Demand Side Management Limited,Advanced Demand Side Management Limited,Operational Responses,5,202405,01/08/2023,9107782,"-5,450.66 ","5,450.66 ",2104,Sewerage and Environmental,1019,West Bridgford,-317.33 
Nottinghamshire Fire and Rescue Service,104256,Advanced Demand Side Management Limited,Advanced Demand Side Management Limited,Operational Responses,5,202405,01/08/2023,9107782,"-5,450.66 ","5,450.66 ",2104,Sewerage and Environmental,1019,West Bridgford,255.16 
Nottinghamshire Fire and Rescue Service,104256,Advanced Demand Side Management Limited,Advanced Demand Side Management Limited,Operational Responses,5,202405,01/08/2023,9107782,"-5,450.66 ","5,450.66 ",2104,Sewerage and Environmental,1019,West Bridgford,309.09 
Nottinghamshire Fire and Rescue Service,104256,Advanced Demand Side Management Limited,Advanced Demand Side Management Limited,Operational Responses,5,202405,01/08/2023,9107782,"-5,450.66 ","5,450.66 ",2104,Sewerage and Environmental,1020,Stockhill,-182.59 
Nottinghamshire Fire and Rescue Service,104256,Advanced Demand Side Management Limited,Advanced Demand Side Management Limited,Operational Responses,5,202405,01/08/2023,9107782,"-5,450.66 ","5,450.66 ",2104,Sewerage and Environmental,1020,Stockhill,183.78 
Nottinghamshire Fire and Rescue Service,104256,Advanced Demand Side Management Limited,Advanced Demand Side Management Limited,Operational Responses,5,202405,01/08/2023,9107782,"-5,450.66 ","5,450.66 ",2104,Sewerage and Environmental,1020,Stockhill,191.10 
Nottinghamshire Fire and Rescue Service,104256,Advanced Demand Side Management Limited,Advanced Demand Side Management Limited,Operational Responses,5,202405,01/08/2023,9107782,"-5,450.66 ","5,450.66 ",2104,Sewerage and Environmental,1023,Stapleford,-134.32 
Nottinghamshire Fire and Rescue Service,104256,Advanced Demand Side Management Limited,Advanced Demand Side Management Limited,Operational Responses,5,202405,01/08/2023,9107782,"-5,450.66 ","5,450.66 ",2104,Sewerage and Environmental,1023,Stapleford,105.93 
Nottinghamshire Fire and Rescue Service,104256,Advanced Demand Side Management Limited,Advanced Demand Side Management Limited,Operational Responses,5,202405,01/08/2023,9107782,"-5,450.66 ","5,450.66 ",2104,Sewerage and Environmental,1023,Stapleford,109.46 
Nottinghamshire Fire and Rescue Service,104256,Advanced Demand Side Management Limited,Advanced Demand Side Management Limited,Operational Responses,5,202405,01/08/2023,9107782,"-5,450.66 ","5,450.66 ",2104,Sewerage and Environmental,1024,Eastwood,-43.80 
Nottinghamshire Fire and Rescue Service,104256,Advanced Demand Side Management Limited,Advanced Demand Side Management Limited,Operational Responses,5,202405,01/08/2023,9107782,"-5,450.66 ","5,450.66 ",2104,Sewerage and Environmental,1024,Eastwood,50.02 
Nottinghamshire Fire and Rescue Service,104256,Advanced Demand Side Management Limited,Advanced Demand Side Management Limited,Operational Responses,5,202405,01/08/2023,9107782,"-5,450.66 ","5,450.66 ",2104,Sewerage and Environmental,1024,Eastwood,51.68 
Nottinghamshire Fire and Rescue Service,104256,Advanced Demand Side Management Limited,Advanced Demand Side Management Limited,Operational Responses,5,202405,01/08/2023,9107782,"-5,450.66 ","5,450.66 ",2104,Sewerage and Environmental,1026,Arnold,-161.13 
Nottinghamshire Fire and Rescue Service,104256,Advanced Demand Side Management Limited,Advanced Demand Side Management Limited,Operational Responses,5,202405,01/08/2023,9107782,"-5,450.66 ","5,450.66 ",2104,Sewerage and Environmental,1026,Arnold,167.52 
Nottinghamshire Fire and Rescue Service,104256,Advanced Demand Side Management Limited,Advanced Demand Side Management Limited,Operational Responses,5,202405,01/08/2023,9107782,"-5,450.66 ","5,450.66 ",2104,Sewerage and Environmental,1026,Arnold,171.57 
Nottinghamshire Fire and Rescue Service,104256,Advanced Demand Side Management Limited,Advanced Demand Side Management Limited,Operational Responses,5,202405,01/08/2023,9107782,"-5,450.66 ","5,450.66 ",2104,Sewerage and Environmental,1027,Carlton,-273.83 
Nottinghamshire Fire and Rescue Service,104256,Advanced Demand Side Management Limited,Advanced Demand Side Management Limited,Operational Responses,5,202405,01/08/2023,9107782,"-5,450.66 ","5,450.66 ",2104,Sewerage and Environmental,1027,Carlton,191.04 
Nottinghamshire Fire and Rescue Service,104256,Advanced Demand Side Management Limited,Advanced Demand Side Management Limited,Operational Responses,5,202405,01/08/2023,9107782,"-5,450.66 ","5,450.66 ",2104,Sewerage and Environmental,1027,Carlton,197.41 
Nottinghamshire Fire and Rescue Service,104256,Advanced Demand Side Management Limited,Advanced Demand Side Management Limited,Operational Responses,5,202405,01/08/2023,9107782,"-5,450.66 ","5,450.66 ",2104,Sewerage and Environmental,1028,East Leake,2.25 
Nottinghamshire Fire and Rescue Service,104256,Advanced Demand Side Management Limited,Advanced Demand Side Management Limited,Operational Responses,5,202405,01/08/2023,9107782,"-5,450.66 ","5,450.66 ",2104,Sewerage and Environmental,1029,Highfields Station,-176.36 
Nottinghamshire Fire and Rescue Service,104256,Advanced Demand Side Management Limited,Advanced Demand Side Management Limited,Operational Responses,5,202405,01/08/2023,9107782,"-5,450.66 ","5,450.66 ",2104,Sewerage and Environmental,1029,Highfields Station,175.73 
Nottinghamshire Fire and Rescue Service,104256,Advanced Demand Side Management Limited,Advanced Demand Side Management Limited,Operational Responses,5,202405,01/08/2023,9107782,"-5,450.66 ","5,450.66 ",2104,Sewerage and Environmental,1029,Highfields Station,181.58 
Nottinghamshire Fire and Rescue Service,104256,Advanced Demand Side Management Limited,Advanced Demand Side Management Limited,Management & Support Services,5,202405,01/08/2023,9107782,"-5,450.66 ","5,450.66 ",2104,Sewerage and Environmental,1030,Service Development Centre,-275.62 
Nottinghamshire Fire and Rescue Service,104256,Advanced Demand Side Management Limited,Advanced Demand Side Management Limited,Management & Support Services,5,202405,01/08/2023,9107782,"-5,450.66 ","5,450.66 ",2104,Sewerage and Environmental,1030,Service Development Centre,324.88 
Nottinghamshire Fire and Rescue Service,104256,Advanced Demand Side Management Limited,Advanced Demand Side Management Limited,Management & Support Services,5,202405,01/08/2023,9107782,"-5,450.66 ","5,450.66 ",2104,Sewerage and Environmental,1030,Service Development Centre,335.71 
Nottinghamshire Fire and Rescue Service,104256,Advanced Demand Side Management Limited,Advanced Demand Side Management Limited,Management & Support Services,5,202405,01/08/2023,9107782,"-5,450.66 ","5,450.66 ",2104,Sewerage and Environmental,1035,Headquarters,-204.24 
Nottinghamshire Fire and Rescue Service,104256,Advanced Demand Side Management Limited,Advanced Demand Side Management Limited,Management & Support Services,5,202405,01/08/2023,9107782,"-5,450.66 ","5,450.66 ",2104,Sewerage and Environmental,1035,Headquarters,167.27 
Nottinghamshire Fire and Rescue Service,104256,Advanced Demand Side Management Limited,Advanced Demand Side Management Limited,Management & Support Services,5,202405,01/08/2023,9107782,"-5,450.66 ","5,450.66 ",2104,Sewerage and Environmental,1035,Headquarters,172.84 
Nottinghamshire Fire and Rescue Service,104256,Advanced Demand Side Management Limited,Advanced Demand Side Management Limited,Prevention & Education,5,202405,01/08/2023,9107782,"-5,450.66 ","5,450.66 ",2104,Sewerage and Environmental,1036,Clifton Community Safety Centre,-66.28 
Nottinghamshire Fire and Rescue Service,104256,Advanced Demand Side Management Limited,Advanced Demand Side Management Limited,Prevention & Education,5,202405,01/08/2023,9107782,"-5,450.66 ","5,450.66 ",2104,Sewerage and Environmental,1036,Clifton Community Safety Centre,63.11 
Nottinghamshire Fire and Rescue Service,104256,Advanced Demand Side Management Limited,Advanced Demand Side Management Limited,Prevention & Education,5,202405,01/08/2023,9107782,"-5,450.66 ","5,450.66 ",2104,Sewerage and Environmental,1036,Clifton Community Safety Centre,65.21 
Nottinghamshire Fire and Rescue Service,104256,Advanced Demand Side Management Limited,Advanced Demand Side Management Limited,Operational Responses,5,202405,12/06/2023,9107783,"-6,301.46 ","6,301.46 ",2104,Sewerage and Environmental,1001,Mansfield,22.40 
Nottinghamshire Fire and Rescue Service,104256,Advanced Demand Side Management Limited,Advanced Demand Side Management Limited,Operational Responses,5,202405,12/06/2023,9107783,"-6,301.46 ","6,301.46 ",2104,Sewerage and Environmental,1001,Mansfield,209.97 
Nottinghamshire Fire and Rescue Service,104256,Advanced Demand Side Management Limited,Advanced Demand Side Management Limited,Operational Responses,5,202405,12/06/2023,9107783,"-6,301.46 ","6,301.46 ",2104,Sewerage and Environmental,1002,Blidworth,-11.74 
Nottinghamshire Fire and Rescue Service,104256,Advanced Demand Side Management Limited,Advanced Demand Side Management Limited,Operational Responses,5,202405,12/06/2023,9107783,"-6,301.46 ","6,301.46 ",2104,Sewerage and Environmental,1002,Blidworth,-10.49 
Nottinghamshire Fire and Rescue Service,104256,Advanced Demand Side Management Limited,Advanced Demand Side Management Limited,Operational Responses,5,202405,12/06/2023,9107783,"-6,301.46 ","6,301.46 ",2104,Sewerage and Environmental,1002,Blidworth,-10.37 
Nottinghamshire Fire and Rescue Service,104256,Advanced Demand Side Management Limited,Advanced Demand Side Management Limited,Operational Responses,5,202405,12/06/2023,9107783,"-6,301.46 ","6,301.46 ",2104,Sewerage and Environmental,1002,Blidworth,-4.68 
Nottinghamshire Fire and Rescue Service,104256,Advanced Demand Side Management Limited,Advanced Demand Side Management Limited,Operational Responses,5,202405,12/06/2023,9107783,"-6,301.46 ","6,301.46 ",2104,Sewerage and Environmental,1002,Blidworth,23.87 
Nottinghamshire Fire and Rescue Service,104256,Advanced Demand Side Management Limited,Advanced Demand Side Management Limited,Operational Responses,5,202405,12/06/2023,9107783,"-6,301.46 ","6,301.46 ",2104,Sewerage and Environmental,1002,Blidworth,25.49 
Nottinghamshire Fire and Rescue Service,104256,Advanced Demand Side Management Limited,Advanced Demand Side Management Limited,Operational Responses,5,202405,12/06/2023,9107783,"-6,301.46 ","6,301.46 ",2104,Sewerage and Environmental,1003,London Road,229.76 
Nottinghamshire Fire and Rescue Service,104256,Advanced Demand Side Management Limited,Advanced Demand Side Management Limited,Operational Responses,5,202405,12/06/2023,9107783,"-6,301.46 ","6,301.46 ",2104,Sewerage and Environmental,1005,Ashfield,91.41 
Nottinghamshire Fire and Rescue Service,104256,Advanced Demand Side Management Limited,Advanced Demand Side Management Limited,Operational Responses,5,202405,12/06/2023,9107783,"-6,301.46 ","6,301.46 ",2104,Sewerage and Environmental,1006,Edwinstowe,27.25 
Nottinghamshire Fire and Rescue Service,104256,Advanced Demand Side Management Limited,Advanced Demand Side Management Limited,Operational Responses,5,202405,12/06/2023,9107783,"-6,301.46 ","6,301.46 ",2104,Sewerage and Environmental,1006,Edwinstowe,129.89 
Nottinghamshire Fire and Rescue Service,104256,Advanced Demand Side Management Limited,Advanced Demand Side Management Limited,Operational Responses,5,202405,12/06/2023,9107783,"-6,301.46 ","6,301.46 ",2104,Sewerage and Environmental,1007,Warsop,14.10 
Nottinghamshire Fire and Rescue Service,104256,Advanced Demand Side Management Limited,Advanced Demand Side Management Limited,Operational Responses,5,202405,12/06/2023,9107783,"-6,301.46 ","6,301.46 ",2104,Sewerage and Environmental,1010,Harworth,5.27 
Nottinghamshire Fire and Rescue Service,104256,Advanced Demand Side Management Limited,Advanced Demand Side Management Limited,Operational Responses,5,202405,12/06/2023,9107783,"-6,301.46 ","6,301.46 ",2104,Sewerage and Environmental,1010,Harworth,23.39 
Nottinghamshire Fire and Rescue Service,104256,Advanced Demand Side Management Limited,Advanced Demand Side Management Limited,Operational Responses,5,202405,12/06/2023,9107783,"-6,301.46 ","6,301.46 ",2104,Sewerage and Environmental,1011,Misterton,41.40 
Nottinghamshire Fire and Rescue Service,104256,Advanced Demand Side Management Limited,Advanced Demand Side Management Limited,Operational Responses,5,202405,12/06/2023,9107783,"-6,301.46 ","6,301.46 ",2104,Sewerage and Environmental,1012,Retford,-25.88 
Nottinghamshire Fire and Rescue Service,104256,Advanced Demand Side Management Limited,Advanced Demand Side Management Limited,Operational Responses,5,202405,12/06/2023,9107783,"-6,301.46 ","6,301.46 ",2104,Sewerage and Environmental,1012,Retford,-25.34 
Nottinghamshire Fire and Rescue Service,104256,Advanced Demand Side Management Limited,Advanced Demand Side Management Limited,Operational Responses,5,202405,12/06/2023,9107783,"-6,301.46 ","6,301.46 ",2104,Sewerage and Environmental,1012,Retford,-21.80 
Nottinghamshire Fire and Rescue Service,104256,Advanced Demand Side Management Limited,Advanced Demand Side Management Limited,Operational Responses,5,202405,12/06/2023,9107783,"-6,301.46 ","6,301.46 ",2104,Sewerage and Environmental,1012,Retford,17.33 
Nottinghamshire Fire and Rescue Service,104256,Advanced Demand Side Management Limited,Advanced Demand Side Management Limited,Operational Responses,5,202405,12/06/2023,9107783,"-6,301.46 ","6,301.46 ",2104,Sewerage and Environmental,1012,Retford,34.06 
Nottinghamshire Fire and Rescue Service,104256,Advanced Demand Side Management Limited,Advanced Demand Side Management Limited,Operational Responses,5,202405,12/06/2023,9107783,"-6,301.46 ","6,301.46 ",2104,Sewerage and Environmental,1012,Retford,106.42 
Nottinghamshire Fire and Rescue Service,104256,Advanced Demand Side Management Limited,Advanced Demand Side Management Limited,Operational Responses,5,202405,12/06/2023,9107783,"-6,301.46 ","6,301.46 ",2104,Sewerage and Environmental,1013,Tuxford,-167.86 
Nottinghamshire Fire and Rescue Service,104256,Advanced Demand Side Management Limited,Advanced Demand Side Management Limited,Operational Responses,5,202405,12/06/2023,9107783,"-6,301.46 ","6,301.46 ",2104,Sewerage and Environmental,1013,Tuxford,-159.32 
Nottinghamshire Fire and Rescue Service,104256,Advanced Demand Side Management Limited,Advanced Demand Side Management Limited,Operational Responses,5,202405,12/06/2023,9107783,"-6,301.46 ","6,301.46 ",2104,Sewerage and Environmental,1013,Tuxford,-144.15 
Nottinghamshire Fire and Rescue Service,104256,Advanced Demand Side Management Limited,Advanced Demand Side Management Limited,Operational Responses,5,202405,12/06/2023,9107783,"-6,301.46 ","6,301.46 ",2104,Sewerage and Environmental,1013,Tuxford,-72.64 
Nottinghamshire Fire and Rescue Service,104256,Advanced Demand Side Management Limited,Advanced Demand Side Management Limited,Operational Responses,5,202405,12/06/2023,9107783,"-6,301.46 ","6,301.46 ",2104,Sewerage and Environmental,1013,Tuxford,186.37 
Nottinghamshire Fire and Rescue Service,104256,Advanced Demand Side Management Limited,Advanced Demand Side Management Limited,Operational Responses,5,202405,12/06/2023,9107783,"-6,301.46 ","6,301.46 ",2104,Sewerage and Environmental,1013,Tuxford,201.61 
Nottinghamshire Fire and Rescue Service,104256,Advanced Demand Side Management Limited,Advanced Demand Side Management Limited,Operational Responses,5,202405,12/06/2023,9107783,"-6,301.46 ","6,301.46 ",2104,Sewerage and Environmental,1014,Southwell,90.31 
Nottinghamshire Fire and Rescue Service,104256,Advanced Demand Side Management Limited,Advanced Demand Side Management Limited,Operational Responses,5,202405,12/06/2023,9107783,"-6,301.46 ","6,301.46 ",2104,Sewerage and Environmental,1015,Collingham,70.08 
Nottinghamshire Fire and Rescue Service,104256,Advanced Demand Side Management Limited,Advanced Demand Side Management Limited,Operational Responses,5,202405,12/06/2023,9107783,"-6,301.46 ","6,301.46 ",2104,Sewerage and Environmental,1016,Newark,-177.97 
Nottinghamshire Fire and Rescue Service,104256,Advanced Demand Side Management Limited,Advanced Demand Side Management Limited,Operational Responses,5,202405,12/06/2023,9107783,"-6,301.46 ","6,301.46 ",2104,Sewerage and Environmental,1016,Newark,361.87 
Nottinghamshire Fire and Rescue Service,104256,Advanced Demand Side Management Limited,Advanced Demand Side Management Limited,Operational Responses,5,202405,12/06/2023,9107783,"-6,301.46 ","6,301.46 ",2104,Sewerage and Environmental,1016,Newark,623.09 
Nottinghamshire Fire and Rescue Service,104256,Advanced Demand Side Management Limited,Advanced Demand Side Management Limited,Operational Responses,5,202405,12/06/2023,9107783,"-6,301.46 ","6,301.46 ",2104,Sewerage and Environmental,1017,Bingham,87.94 
Nottinghamshire Fire and Rescue Service,104256,Advanced Demand Side Management Limited,Advanced Demand Side Management Limited,Operational Responses,5,202405,12/06/2023,9107783,"-6,301.46 ","6,301.46 ",2104,Sewerage and Environmental,1019,West Bridgford,56.46 
Nottinghamshire Fire and Rescue Service,104256,Advanced Demand Side Management Limited,Advanced Demand Side Management Limited,Operational Responses,5,202405,12/06/2023,9107783,"-6,301.46 ","6,301.46 ",2104,Sewerage and Environmental,1019,West Bridgford,549.09 
Nottinghamshire Fire and Rescue Service,104256,Advanced Demand Side Management Limited,Advanced Demand Side Management Limited,Operational Responses,5,202405,12/06/2023,9107783,"-6,301.46 ","6,301.46 ",2104,Sewerage and Environmental,1020,Stockhill,-234.32 
Nottinghamshire Fire and Rescue Service,104256,Advanced Demand Side Management Limited,Advanced Demand Side Management Limited,Operational Responses,5,202405,12/06/2023,9107783,"-6,301.46 ","6,301.46 ",2104,Sewerage and Environmental,1020,Stockhill,-180.34 
Nottinghamshire Fire and Rescue Service,104256,Advanced Demand Side Management Limited,Advanced Demand Side Management Limited,Operational Responses,5,202405,12/06/2023,9107783,"-6,301.46 ","6,301.46 ",2104,Sewerage and Environmental,1020,Stockhill,231.11 
Nottinghamshire Fire and Rescue Service,104256,Advanced Demand Side Management Limited,Advanced Demand Side Management Limited,Operational Responses,5,202405,12/06/2023,9107783,"-6,301.46 ","6,301.46 ",2104,Sewerage and Environmental,1020,Stockhill,363.05 
Nottinghamshire Fire and Rescue Service,104256,Advanced Demand Side Management Limited,Advanced Demand Side Management Limited,Operational Responses,5,202405,12/06/2023,9107783,"-6,301.46 ","6,301.46 ",2104,Sewerage and Environmental,1023,Stapleford,-102.53 
Nottinghamshire Fire and Rescue Service,104256,Advanced Demand Side Management Limited,Advanced Demand Side Management Limited,Operational Responses,5,202405,12/06/2023,9107783,"-6,301.46 ","6,301.46 ",2104,Sewerage and Environmental,1023,Stapleford,-101.40 
Nottinghamshire Fire and Rescue Service,104256,Advanced Demand Side Management Limited,Advanced Demand Side Management Limited,Operational Responses,5,202405,12/06/2023,9107783,"-6,301.46 ","6,301.46 ",2104,Sewerage and Environmental,1023,Stapleford,-91.15 
Nottinghamshire Fire and Rescue Service,104256,Advanced Demand Side Management Limited,Advanced Demand Side Management Limited,Operational Responses,5,202405,12/06/2023,9107783,"-6,301.46 ","6,301.46 ",2104,Sewerage and Environmental,1023,Stapleford,-75.93 
Nottinghamshire Fire and Rescue Service,104256,Advanced Demand Side Management Limited,Advanced Demand Side Management Limited,Operational Responses,5,202405,12/06/2023,9107783,"-6,301.46 ","6,301.46 ",2104,Sewerage and Environmental,1023,Stapleford,202.97 
Nottinghamshire Fire and Rescue Service,104256,Advanced Demand Side Management Limited,Advanced Demand Side Management Limited,Operational Responses,5,202405,12/06/2023,9107783,"-6,301.46 ","6,301.46 ",2104,Sewerage and Environmental,1023,Stapleford,232.03 
Nottinghamshire Fire and Rescue Service,104256,Advanced Demand Side Management Limited,Advanced Demand Side Management Limited,Operational Responses,5,202405,12/06/2023,9107783,"-6,301.46 ","6,301.46 ",2104,Sewerage and Environmental,1024,Eastwood,51.44 
Nottinghamshire Fire and Rescue Service,104256,Advanced Demand Side Management Limited,Advanced Demand Side Management Limited,Operational Responses,5,202405,12/06/2023,9107783,"-6,301.46 ","6,301.46 ",2104,Sewerage and Environmental,1026,Arnold,364.51 
Nottinghamshire Fire and Rescue Service,104256,Advanced Demand Side Management Limited,Advanced Demand Side Management Limited,Operational Responses,5,202405,12/06/2023,9107783,"-6,301.46 ","6,301.46 ",2104,Sewerage and Environmental,1027,Carlton,196.93 
Nottinghamshire Fire and Rescue Service,104256,Advanced Demand Side Management Limited,Advanced Demand Side Management Limited,Operational Responses,5,202405,12/06/2023,9107783,"-6,301.46 ","6,301.46 ",2104,Sewerage and Environmental,1028,East Leake,3.02 
Nottinghamshire Fire and Rescue Service,104256,Advanced Demand Side Management Limited,Advanced Demand Side Management Limited,Operational Responses,5,202405,12/06/2023,9107783,"-6,301.46 ","6,301.46 ",2104,Sewerage and Environmental,1028,East Leake,18.65 
Nottinghamshire Fire and Rescue Service,104256,Advanced Demand Side Management Limited,Advanced Demand Side Management Limited,Operational Responses,5,202405,12/06/2023,9107783,"-6,301.46 ","6,301.46 ",2104,Sewerage and Environmental,1029,Highfields Station,207.24 
Nottinghamshire Fire and Rescue Service,104256,Advanced Demand Side Management Limited,Advanced Demand Side Management Limited,Management & Support Services,5,202405,12/06/2023,9107783,"-6,301.46 ","6,301.46 ",2104,Sewerage and Environmental,1030,Service Development Centre,335.22 
Nottinghamshire Fire and Rescue Service,104256,Advanced Demand Side Management Limited,Advanced Demand Side Management Limited,Management & Support Services,5,202405,12/06/2023,9107783,"-6,301.46 ","6,301.46 ",2104,Sewerage and Environmental,1035,Headquarters,172.88 
Nottinghamshire Fire and Rescue Service,104256,Advanced Demand Side Management Limited,Advanced Demand Side Management Limited,Prevention & Education,5,202405,12/06/2023,9107783,"-6,301.46 ","6,301.46 ",2104,Sewerage and Environmental,1036,Clifton Community Safety Centre,65.34 
Nottinghamshire Fire and Rescue Service,103847,Veolia ES UK Limited,Veolia ES UK Limited,Management & Support Services,5,202405,31/07/2023,9107560,"-1,380.41 ","1,380.41 ",2106,Refuse / Trade Waste Collection,2086,Procurement,"1,150.34 "
Nottinghamshire Fire and Rescue Service,103847,Veolia ES UK Limited,Veolia ES UK Limited,Management & Support Services,5,202405,30/06/2023,9107564,"-1,409.46 ","1,409.46 ",2106,Refuse / Trade Waste Collection,2086,Procurement,"1,174.55 "
Nottinghamshire Fire and Rescue Service,103280,Shred IT Limited,Shred IT Limited,Management & Support Services,5,202405,31/07/2023,9107608,-384.00 ,384.00 ,2106,Refuse / Trade Waste Collection,2086,Procurement,320.00 
Nottinghamshire Fire and Rescue Service,100557,NCC Sundry Debtors,NCC Sundry Debtors,Operational Responses,4,202405,01/08/2023,9107575,"-1,925.17 ","1,925.17 ",2201,Grounds Maintenance,1001,Mansfield,38.10 
Nottinghamshire Fire and Rescue Service,100557,NCC Sundry Debtors,NCC Sundry Debtors,Operational Responses,4,202405,01/08/2023,9107575,"-1,925.17 ","1,925.17 ",2201,Grounds Maintenance,1002,Blidworth,67.84 
Nottinghamshire Fire and Rescue Service,100557,NCC Sundry Debtors,NCC Sundry Debtors,Operational Responses,4,202405,01/08/2023,9107575,"-1,925.17 ","1,925.17 ",2201,Grounds Maintenance,1003,London Road,46.25 
Nottinghamshire Fire and Rescue Service,100557,NCC Sundry Debtors,NCC Sundry Debtors,Operational Responses,4,202405,01/08/2023,9107575,"-1,925.17 ","1,925.17 ",2201,Grounds Maintenance,1005,Ashfield,218.75 
Nottinghamshire Fire and Rescue Service,100557,NCC Sundry Debtors,NCC Sundry Debtors,Operational Responses,4,202405,01/08/2023,9107575,"-1,925.17 ","1,925.17 ",2201,Grounds Maintenance,1006,Edwinstowe,45.28 
Nottinghamshire Fire and Rescue Service,100557,NCC Sundry Debtors,NCC Sundry Debtors,Operational Responses,4,202405,01/08/2023,9107575,"-1,925.17 ","1,925.17 ",2201,Grounds Maintenance,1007,Warsop,7.50 
Nottinghamshire Fire and Rescue Service,100557,NCC Sundry Debtors,NCC Sundry Debtors,Operational Responses,4,202405,01/08/2023,9107575,"-1,925.17 ","1,925.17 ",2201,Grounds Maintenance,1010,Harworth,44.25 
Nottinghamshire Fire and Rescue Service,100557,NCC Sundry Debtors,NCC Sundry Debtors,Operational Responses,4,202405,01/08/2023,9107575,"-1,925.17 ","1,925.17 ",2201,Grounds Maintenance,1011,Misterton,39.50 
Nottinghamshire Fire and Rescue Service,100557,NCC Sundry Debtors,NCC Sundry Debtors,Operational Responses,4,202405,01/08/2023,9107575,"-1,925.17 ","1,925.17 ",2201,Grounds Maintenance,1012,Retford,26.76 
Nottinghamshire Fire and Rescue Service,100557,NCC Sundry Debtors,NCC Sundry Debtors,Operational Responses,4,202405,01/08/2023,9107575,"-1,925.17 ","1,925.17 ",2201,Grounds Maintenance,1013,Tuxford,30.00 
Nottinghamshire Fire and Rescue Service,100557,NCC Sundry Debtors,NCC Sundry Debtors,Operational Responses,4,202405,01/08/2023,9107575,"-1,925.17 ","1,925.17 ",2201,Grounds Maintenance,1014,Southwell,36.13 
Nottinghamshire Fire and Rescue Service,100557,NCC Sundry Debtors,NCC Sundry Debtors,Operational Responses,4,202405,01/08/2023,9107575,"-1,925.17 ","1,925.17 ",2201,Grounds Maintenance,1015,Collingham,40.80 
Nottinghamshire Fire and Rescue Service,100557,NCC Sundry Debtors,NCC Sundry Debtors,Operational Responses,4,202405,01/08/2023,9107575,"-1,925.17 ","1,925.17 ",2201,Grounds Maintenance,1016,Newark,40.00 
Nottinghamshire Fire and Rescue Service,100557,NCC Sundry Debtors,NCC Sundry Debtors,Operational Responses,4,202405,01/08/2023,9107575,"-1,925.17 ","1,925.17 ",2201,Grounds Maintenance,1017,Bingham,64.08 
Nottinghamshire Fire and Rescue Service,100557,NCC Sundry Debtors,NCC Sundry Debtors,Operational Responses,4,202405,01/08/2023,9107575,"-1,925.17 ","1,925.17 ",2201,Grounds Maintenance,1019,West Bridgford,84.48 
Nottinghamshire Fire and Rescue Service,100557,NCC Sundry Debtors,NCC Sundry Debtors,Operational Responses,4,202405,01/08/2023,9107575,"-1,925.17 ","1,925.17 ",2201,Grounds Maintenance,1020,Stockhill,216.10 
Nottinghamshire Fire and Rescue Service,100557,NCC Sundry Debtors,NCC Sundry Debtors,Operational Responses,4,202405,01/08/2023,9107575,"-1,925.17 ","1,925.17 ",2201,Grounds Maintenance,1023,Stapleford,80.50 
Nottinghamshire Fire and Rescue Service,100557,NCC Sundry Debtors,NCC Sundry Debtors,Operational Responses,4,202405,01/08/2023,9107575,"-1,925.17 ","1,925.17 ",2201,Grounds Maintenance,1024,Eastwood,28.75 
Nottinghamshire Fire and Rescue Service,100557,NCC Sundry Debtors,NCC Sundry Debtors,Operational Responses,4,202405,01/08/2023,9107575,"-1,925.17 ","1,925.17 ",2201,Grounds Maintenance,1026,Arnold,22.08 
Nottinghamshire Fire and Rescue Service,100557,NCC Sundry Debtors,NCC Sundry Debtors,Operational Responses,4,202405,01/08/2023,9107575,"-1,925.17 ","1,925.17 ",2201,Grounds Maintenance,1027,Carlton,39.58 
Nottinghamshire Fire and Rescue Service,100557,NCC Sundry Debtors,NCC Sundry Debtors,Operational Responses,4,202405,01/08/2023,9107575,"-1,925.17 ","1,925.17 ",2201,Grounds Maintenance,1028,East Leake,133.75 
Nottinghamshire Fire and Rescue Service,100557,NCC Sundry Debtors,NCC Sundry Debtors,Operational Responses,4,202405,01/08/2023,9107575,"-1,925.17 ","1,925.17 ",2201,Grounds Maintenance,1029,Highfields Station,97.08 
Nottinghamshire Fire and Rescue Service,100557,NCC Sundry Debtors,NCC Sundry Debtors,Management & Support Services,4,202405,01/08/2023,9107575,"-1,925.17 ","1,925.17 ",2201,Grounds Maintenance,1030,Service Development Centre,156.75 
Nottinghamshire Fire and Rescue Service,100357,Eastern Shires Purchasing Organisation,Eastern Shires Purchasing Organisation,Management & Support Services,1,202405,11/08/2023,9107732,-319.20 ,319.20 ,2202,Fixtures & Fittings,1035,Headquarters,266.00 
Nottinghamshire Fire and Rescue Service,100557,NCC Sundry Debtors,NCC Sundry Debtors,Operational Responses,4,202405,01/08/2023,9107576,"-39,783.70 ","39,783.70 ",2204,Contract Cleaning,1001,Mansfield,"2,845.17 "
Nottinghamshire Fire and Rescue Service,100557,NCC Sundry Debtors,NCC Sundry Debtors,Operational Responses,4,202405,01/08/2023,9107576,"-39,783.70 ","39,783.70 ",2204,Contract Cleaning,1002,Blidworth,268.77 
Nottinghamshire Fire and Rescue Service,100557,NCC Sundry Debtors,NCC Sundry Debtors,Operational Responses,4,202405,01/08/2023,9107576,"-39,783.70 ","39,783.70 ",2204,Contract Cleaning,1003,London Road,"3,037.54 "
Nottinghamshire Fire and Rescue Service,100557,NCC Sundry Debtors,NCC Sundry Debtors,Operational Responses,4,202405,01/08/2023,9107576,"-39,783.70 ","39,783.70 ",2204,Contract Cleaning,1005,Ashfield,"1,498.54 "
Nottinghamshire Fire and Rescue Service,100557,NCC Sundry Debtors,NCC Sundry Debtors,Operational Responses,4,202405,01/08/2023,9107576,"-39,783.70 ","39,783.70 ",2204,Contract Cleaning,1006,Edwinstowe,"1,152.27 "
Nottinghamshire Fire and Rescue Service,100557,NCC Sundry Debtors,NCC Sundry Debtors,Operational Responses,4,202405,01/08/2023,9107576,"-39,783.70 ","39,783.70 ",2204,Contract Cleaning,1007,Warsop,230.29 
Nottinghamshire Fire and Rescue Service,100557,NCC Sundry Debtors,NCC Sundry Debtors,Operational Responses,4,202405,01/08/2023,9107576,"-39,783.70 ","39,783.70 ",2204,Contract Cleaning,1008,Worksop,"1,883.29 "
Nottinghamshire Fire and Rescue Service,100557,NCC Sundry Debtors,NCC Sundry Debtors,Operational Responses,4,202405,01/08/2023,9107576,"-39,783.70 ","39,783.70 ",2204,Contract Cleaning,1010,Harworth,422.67 
Nottinghamshire Fire and Rescue Service,100557,NCC Sundry Debtors,NCC Sundry Debtors,Operational Responses,4,202405,01/08/2023,9107576,"-39,783.70 ","39,783.70 ",2204,Contract Cleaning,1011,Misterton,345.72 
Nottinghamshire Fire and Rescue Service,100557,NCC Sundry Debtors,NCC Sundry Debtors,Operational Responses,4,202405,01/08/2023,9107576,"-39,783.70 ","39,783.70 ",2204,Contract Cleaning,1012,Retford,"1,921.77 "
Nottinghamshire Fire and Rescue Service,100557,NCC Sundry Debtors,NCC Sundry Debtors,Operational Responses,4,202405,01/08/2023,9107576,"-39,783.70 ","39,783.70 ",2204,Contract Cleaning,1013,Tuxford,268.77 
Nottinghamshire Fire and Rescue Service,100557,NCC Sundry Debtors,NCC Sundry Debtors,Operational Responses,4,202405,01/08/2023,9107576,"-39,783.70 ","39,783.70 ",2204,Contract Cleaning,1014,Southwell,384.19 
Nottinghamshire Fire and Rescue Service,100557,NCC Sundry Debtors,NCC Sundry Debtors,Operational Responses,4,202405,01/08/2023,9107576,"-39,783.70 ","39,783.70 ",2204,Contract Cleaning,1015,Collingham,384.19 
Nottinghamshire Fire and Rescue Service,100557,NCC Sundry Debtors,NCC Sundry Debtors,Operational Responses,4,202405,01/08/2023,9107576,"-39,783.70 ","39,783.70 ",2204,Contract Cleaning,1016,Newark,"1,498.54 "
Nottinghamshire Fire and Rescue Service,100557,NCC Sundry Debtors,NCC Sundry Debtors,Operational Responses,4,202405,01/08/2023,9107576,"-39,783.70 ","39,783.70 ",2204,Contract Cleaning,1017,Bingham,268.77 
Nottinghamshire Fire and Rescue Service,100557,NCC Sundry Debtors,NCC Sundry Debtors,Operational Responses,4,202405,01/08/2023,9107576,"-39,783.70 ","39,783.70 ",2204,Contract Cleaning,1019,West Bridgford,"2,306.52 "
Nottinghamshire Fire and Rescue Service,100557,NCC Sundry Debtors,NCC Sundry Debtors,Operational Responses,4,202405,01/08/2023,9107576,"-39,783.70 ","39,783.70 ",2204,Contract Cleaning,1020,Stockhill,"1,883.29 "
Nottinghamshire Fire and Rescue Service,100557,NCC Sundry Debtors,NCC Sundry Debtors,Operational Responses,4,202405,01/08/2023,9107576,"-39,783.70 ","39,783.70 ",2204,Contract Cleaning,1023,Stapleford,615.04 
Nottinghamshire Fire and Rescue Service,100557,NCC Sundry Debtors,NCC Sundry Debtors,Operational Responses,4,202405,01/08/2023,9107576,"-39,783.70 ","39,783.70 ",2204,Contract Cleaning,1024,Eastwood,422.67 
Nottinghamshire Fire and Rescue Service,100557,NCC Sundry Debtors,NCC Sundry Debtors,Operational Responses,4,202405,01/08/2023,9107576,"-39,783.70 ","39,783.70 ",2204,Contract Cleaning,1026,Arnold,"1,402.35 "
Nottinghamshire Fire and Rescue Service,100557,NCC Sundry Debtors,NCC Sundry Debtors,Operational Responses,4,202405,01/08/2023,9107576,"-39,783.70 ","39,783.70 ",2204,Contract Cleaning,1027,Carlton,"2,652.79 "
Nottinghamshire Fire and Rescue Service,100557,NCC Sundry Debtors,NCC Sundry Debtors,Operational Responses,4,202405,01/08/2023,9107576,"-39,783.70 ","39,783.70 ",2204,Contract Cleaning,1028,East Leake,268.77 
Nottinghamshire Fire and Rescue Service,100557,NCC Sundry Debtors,NCC Sundry Debtors,Operational Responses,4,202405,01/08/2023,9107576,"-39,783.70 ","39,783.70 ",2204,Contract Cleaning,1029,Highfields Station,"5,075.59 "
Nottinghamshire Fire and Rescue Service,100557,NCC Sundry Debtors,NCC Sundry Debtors,Management & Support Services,4,202405,01/08/2023,9107576,"-39,783.70 ","39,783.70 ",2204,Contract Cleaning,1030,Service Development Centre,"2,115.57 "
Nottinghamshire Fire and Rescue Service,100557,NCC Sundry Debtors,NCC Sundry Debtors,Operational Responses,4,202405,01/08/2023,9107577,-864.00 ,864.00 ,2204,Contract Cleaning,1001,Mansfield,30.00 
Nottinghamshire Fire and Rescue Service,100557,NCC Sundry Debtors,NCC Sundry Debtors,Operational Responses,4,202405,01/08/2023,9107577,-864.00 ,864.00 ,2204,Contract Cleaning,1002,Blidworth,30.00 
Nottinghamshire Fire and Rescue Service,100557,NCC Sundry Debtors,NCC Sundry Debtors,Operational Responses,4,202405,01/08/2023,9107577,-864.00 ,864.00 ,2204,Contract Cleaning,1003,London Road,30.00 
Nottinghamshire Fire and Rescue Service,100557,NCC Sundry Debtors,NCC Sundry Debtors,Operational Responses,4,202405,01/08/2023,9107577,-864.00 ,864.00 ,2204,Contract Cleaning,1005,Ashfield,30.00 
Nottinghamshire Fire and Rescue Service,100557,NCC Sundry Debtors,NCC Sundry Debtors,Operational Responses,4,202405,01/08/2023,9107577,-864.00 ,864.00 ,2204,Contract Cleaning,1006,Edwinstowe,30.00 
Nottinghamshire Fire and Rescue Service,100557,NCC Sundry Debtors,NCC Sundry Debtors,Operational Responses,4,202405,01/08/2023,9107577,-864.00 ,864.00 ,2204,Contract Cleaning,1007,Warsop,30.00 
Nottinghamshire Fire and Rescue Service,100557,NCC Sundry Debtors,NCC Sundry Debtors,Operational Responses,4,202405,01/08/2023,9107577,-864.00 ,864.00 ,2204,Contract Cleaning,1008,Worksop,30.00 
Nottinghamshire Fire and Rescue Service,100557,NCC Sundry Debtors,NCC Sundry Debtors,Operational Responses,4,202405,01/08/2023,9107577,-864.00 ,864.00 ,2204,Contract Cleaning,1010,Harworth,30.00 
Nottinghamshire Fire and Rescue Service,100557,NCC Sundry Debtors,NCC Sundry Debtors,Operational Responses,4,202405,01/08/2023,9107577,-864.00 ,864.00 ,2204,Contract Cleaning,1011,Misterton,30.00 
Nottinghamshire Fire and Rescue Service,100557,NCC Sundry Debtors,NCC Sundry Debtors,Operational Responses,4,202405,01/08/2023,9107577,-864.00 ,864.00 ,2204,Contract Cleaning,1012,Retford,30.00 
Nottinghamshire Fire and Rescue Service,100557,NCC Sundry Debtors,NCC Sundry Debtors,Operational Responses,4,202405,01/08/2023,9107577,-864.00 ,864.00 ,2204,Contract Cleaning,1013,Tuxford,30.00 
Nottinghamshire Fire and Rescue Service,100557,NCC Sundry Debtors,NCC Sundry Debtors,Operational Responses,4,202405,01/08/2023,9107577,-864.00 ,864.00 ,2204,Contract Cleaning,1014,Southwell,30.00 
Nottinghamshire Fire and Rescue Service,100557,NCC Sundry Debtors,NCC Sundry Debtors,Operational Responses,4,202405,01/08/2023,9107577,-864.00 ,864.00 ,2204,Contract Cleaning,1015,Collingham,30.00 
Nottinghamshire Fire and Rescue Service,100557,NCC Sundry Debtors,NCC Sundry Debtors,Operational Responses,4,202405,01/08/2023,9107577,-864.00 ,864.00 ,2204,Contract Cleaning,1016,Newark,30.00 
Nottinghamshire Fire and Rescue Service,100557,NCC Sundry Debtors,NCC Sundry Debtors,Operational Responses,4,202405,01/08/2023,9107577,-864.00 ,864.00 ,2204,Contract Cleaning,1017,Bingham,30.00 
Nottinghamshire Fire and Rescue Service,100557,NCC Sundry Debtors,NCC Sundry Debtors,Operational Responses,4,202405,01/08/2023,9107577,-864.00 ,864.00 ,2204,Contract Cleaning,1019,West Bridgford,30.00 
Nottinghamshire Fire and Rescue Service,100557,NCC Sundry Debtors,NCC Sundry Debtors,Operational Responses,4,202405,01/08/2023,9107577,-864.00 ,864.00 ,2204,Contract Cleaning,1020,Stockhill,30.00 
Nottinghamshire Fire and Rescue Service,100557,NCC Sundry Debtors,NCC Sundry Debtors,Operational Responses,4,202405,01/08/2023,9107577,-864.00 ,864.00 ,2204,Contract Cleaning,1023,Stapleford,30.00 
Nottinghamshire Fire and Rescue Service,100557,NCC Sundry Debtors,NCC Sundry Debtors,Operational Responses,4,202405,01/08/2023,9107577,-864.00 ,864.00 ,2204,Contract Cleaning,1024,Eastwood,30.00 
Nottinghamshire Fire and Rescue Service,100557,NCC Sundry Debtors,NCC Sundry Debtors,Operational Responses,4,202405,01/08/2023,9107577,-864.00 ,864.00 ,2204,Contract Cleaning,1026,Arnold,30.00 
Nottinghamshire Fire and Rescue Service,100557,NCC Sundry Debtors,NCC Sundry Debtors,Operational Responses,4,202405,01/08/2023,9107577,-864.00 ,864.00 ,2204,Contract Cleaning,1027,Carlton,30.00 
Nottinghamshire Fire and Rescue Service,100557,NCC Sundry Debtors,NCC Sundry Debtors,Operational Responses,4,202405,01/08/2023,9107577,-864.00 ,864.00 ,2204,Contract Cleaning,1028,East Leake,30.00 
Nottinghamshire Fire and Rescue Service,100557,NCC Sundry Debtors,NCC Sundry Debtors,Operational Responses,4,202405,01/08/2023,9107577,-864.00 ,864.00 ,2204,Contract Cleaning,1029,Highfields Station,30.00 
Nottinghamshire Fire and Rescue Service,100557,NCC Sundry Debtors,NCC Sundry Debtors,Management & Support Services,4,202405,01/08/2023,9107577,-864.00 ,864.00 ,2204,Contract Cleaning,1030,Service Development Centre,30.00 
Nottinghamshire Fire and Rescue Service,100557,NCC Sundry Debtors,NCC Sundry Debtors,Operational Responses,4,202405,01/08/2023,9107578,-848.00 ,848.00 ,2205,Window Cleaning,1001,Mansfield,50.00 
Nottinghamshire Fire and Rescue Service,100557,NCC Sundry Debtors,NCC Sundry Debtors,Operational Responses,4,202405,01/08/2023,9107578,-848.00 ,848.00 ,2205,Window Cleaning,1002,Blidworth,20.00 
Nottinghamshire Fire and Rescue Service,100557,NCC Sundry Debtors,NCC Sundry Debtors,Operational Responses,4,202405,01/08/2023,9107578,-848.00 ,848.00 ,2205,Window Cleaning,1003,London Road,41.67 
Nottinghamshire Fire and Rescue Service,100557,NCC Sundry Debtors,NCC Sundry Debtors,Operational Responses,4,202405,01/08/2023,9107578,-848.00 ,848.00 ,2205,Window Cleaning,1005,Ashfield,33.33 
Nottinghamshire Fire and Rescue Service,100557,NCC Sundry Debtors,NCC Sundry Debtors,Operational Responses,4,202405,01/08/2023,9107578,-848.00 ,848.00 ,2205,Window Cleaning,1006,Edwinstowe,33.33 
Nottinghamshire Fire and Rescue Service,100557,NCC Sundry Debtors,NCC Sundry Debtors,Operational Responses,4,202405,01/08/2023,9107578,-848.00 ,848.00 ,2205,Window Cleaning,1007,Warsop,21.67 
Nottinghamshire Fire and Rescue Service,100557,NCC Sundry Debtors,NCC Sundry Debtors,Operational Responses,4,202405,01/08/2023,9107578,-848.00 ,848.00 ,2205,Window Cleaning,1008,Worksop,20.00 
Nottinghamshire Fire and Rescue Service,100557,NCC Sundry Debtors,NCC Sundry Debtors,Operational Responses,4,202405,01/08/2023,9107578,-848.00 ,848.00 ,2205,Window Cleaning,1010,Harworth,21.67 
Nottinghamshire Fire and Rescue Service,100557,NCC Sundry Debtors,NCC Sundry Debtors,Operational Responses,4,202405,01/08/2023,9107578,-848.00 ,848.00 ,2205,Window Cleaning,1011,Misterton,20.00 
Nottinghamshire Fire and Rescue Service,100557,NCC Sundry Debtors,NCC Sundry Debtors,Operational Responses,4,202405,01/08/2023,9107578,-848.00 ,848.00 ,2205,Window Cleaning,1012,Retford,50.00 
Nottinghamshire Fire and Rescue Service,100557,NCC Sundry Debtors,NCC Sundry Debtors,Operational Responses,4,202405,01/08/2023,9107578,-848.00 ,848.00 ,2205,Window Cleaning,1013,Tuxford,18.33 
Nottinghamshire Fire and Rescue Service,100557,NCC Sundry Debtors,NCC Sundry Debtors,Operational Responses,4,202405,01/08/2023,9107578,-848.00 ,848.00 ,2205,Window Cleaning,1014,Southwell,16.67 
Nottinghamshire Fire and Rescue Service,100557,NCC Sundry Debtors,NCC Sundry Debtors,Operational Responses,4,202405,01/08/2023,9107578,-848.00 ,848.00 ,2205,Window Cleaning,1015,Collingham,18.33 
Nottinghamshire Fire and Rescue Service,100557,NCC Sundry Debtors,NCC Sundry Debtors,Operational Responses,4,202405,01/08/2023,9107578,-848.00 ,848.00 ,2205,Window Cleaning,1016,Newark,25.00 
Nottinghamshire Fire and Rescue Service,100557,NCC Sundry Debtors,NCC Sundry Debtors,Operational Responses,4,202405,01/08/2023,9107578,-848.00 ,848.00 ,2205,Window Cleaning,1017,Bingham,16.67 
Nottinghamshire Fire and Rescue Service,100557,NCC Sundry Debtors,NCC Sundry Debtors,Operational Responses,4,202405,01/08/2023,9107578,-848.00 ,848.00 ,2205,Window Cleaning,1019,West Bridgford,50.00 
Nottinghamshire Fire and Rescue Service,100557,NCC Sundry Debtors,NCC Sundry Debtors,Operational Responses,4,202405,01/08/2023,9107578,-848.00 ,848.00 ,2205,Window Cleaning,1020,Stockhill,50.00 
Nottinghamshire Fire and Rescue Service,100557,NCC Sundry Debtors,NCC Sundry Debtors,Operational Responses,4,202405,01/08/2023,9107578,-848.00 ,848.00 ,2205,Window Cleaning,1023,Stapleford,18.33 
Nottinghamshire Fire and Rescue Service,100557,NCC Sundry Debtors,NCC Sundry Debtors,Operational Responses,4,202405,01/08/2023,9107578,-848.00 ,848.00 ,2205,Window Cleaning,1024,Eastwood,20.00 
Nottinghamshire Fire and Rescue Service,100557,NCC Sundry Debtors,NCC Sundry Debtors,Operational Responses,4,202405,01/08/2023,9107578,-848.00 ,848.00 ,2205,Window Cleaning,1026,Arnold,25.00 
Nottinghamshire Fire and Rescue Service,100557,NCC Sundry Debtors,NCC Sundry Debtors,Operational Responses,4,202405,01/08/2023,9107578,-848.00 ,848.00 ,2205,Window Cleaning,1027,Carlton,33.33 
Nottinghamshire Fire and Rescue Service,100557,NCC Sundry Debtors,NCC Sundry Debtors,Operational Responses,4,202405,01/08/2023,9107578,-848.00 ,848.00 ,2205,Window Cleaning,1028,East Leake,16.67 
Nottinghamshire Fire and Rescue Service,100557,NCC Sundry Debtors,NCC Sundry Debtors,Operational Responses,4,202405,01/08/2023,9107578,-848.00 ,848.00 ,2205,Window Cleaning,1029,Highfields Station,66.67 
Nottinghamshire Fire and Rescue Service,100557,NCC Sundry Debtors,NCC Sundry Debtors,Management & Support Services,4,202405,01/08/2023,9107578,-848.00 ,848.00 ,2205,Window Cleaning,1030,Service Development Centre,20.00 
Nottinghamshire Fire and Rescue Service,101867,Nottinghamshire Police and Crime Commissioner,Nottinghamshire Police and Crime Commissioner,Management & Support Services,4,202405,10/08/2023,9107698,"-432,524.00 ","432,524.00 ",2207,Hire of Premises,1035,Headquarters,"432,524.00 "
Nottinghamshire Fire and Rescue Service,102364,Woodway Engineering Limited,Woodway Engineering Limited,Management & Support Services,1,202405,09/08/2023,9107708,"-4,770.35 ","4,770.35 ",3100,Fleet Maintenance - Planned,2084,Engineering,"2,570.00 "
Nottinghamshire Fire and Rescue Service,103820,VIA East Midlands Ltd,VIA East Midlands Ltd,Management & Support Services,5,202405,28/07/2023,9107721,"-18,077.18 ","18,077.18 ",3100,Fleet Maintenance - Planned,2084,Engineering,"15,083.09 "
Nottinghamshire Fire and Rescue Service,102364,Woodway Engineering Limited,Woodway Engineering Limited,Management & Support Services,1,202405,16/08/2023,9107775,"-4,763.54 ","4,763.54 ",3100,Fleet Maintenance - Planned,2084,Engineering,"2,670.00 "
Nottinghamshire Fire and Rescue Service,104192,Disc-Lock Europe Limited,Disc-Lock Europe Limited,Management & Support Services,5,202405,26/07/2023,9107481,-886.80 ,886.80 ,3101,Fleet Modification,2084,Engineering,739.00 
Nottinghamshire Fire and Rescue Service,102364,Woodway Engineering Limited,Woodway Engineering Limited,Management & Support Services,1,202405,09/08/2023,9107706,"-4,818.37 ","4,818.37 ",3101,Fleet Modification,2084,Engineering,"4,015.31 "
Nottinghamshire Fire and Rescue Service,102364,Woodway Engineering Limited,Woodway Engineering Limited,Management & Support Services,1,202405,09/08/2023,9107707,"-4,757.48 ","4,757.48 ",3101,Fleet Modification,2084,Engineering,"3,964.57 "
Nottinghamshire Fire and Rescue Service,102364,Woodway Engineering Limited,Woodway Engineering Limited,Management & Support Services,1,202405,09/08/2023,9107708,"-4,770.35 ","4,770.35 ",3101,Fleet Modification,2084,Engineering,"1,405.29 "
Nottinghamshire Fire and Rescue Service,104140,Wheely-Safe Limited,Wheely-Safe Limited,Management & Support Services,5,202405,14/08/2023,9107729,"-1,422.54 ","1,422.54 ",3101,Fleet Modification,2084,Engineering,"1,185.45 "
Nottinghamshire Fire and Rescue Service,102364,Woodway Engineering Limited,Woodway Engineering Limited,Management & Support Services,1,202405,16/08/2023,9107775,"-4,763.54 ","4,763.54 ",3101,Fleet Modification,2084,Engineering,"1,299.62 "
Nottinghamshire Fire and Rescue Service,102228,Keltruck Limited,Keltruck Limited,Management & Support Services,1,202405,18/08/2023,9107764,"-1,771.04 ","1,771.04 ",3102,Vehicle Maintenance Outsourced,2084,Engineering,"1,475.87 "
Nottinghamshire Fire and Rescue Service,103820,VIA East Midlands Ltd,VIA East Midlands Ltd,Management & Support Services,5,202405,28/07/2023,9107720,"-16,129.72 ","16,129.72 ",3103,Fleet Maintenance - Unplanned,2084,Engineering,"13,441.43 "
Nottinghamshire Fire and Rescue Service,102558,Merridale Ltd,Merridale Ltd,Management & Support Services,1,202405,20/07/2023,9107565,-536.40 ,536.40 ,3200,Fuel - Vehicle,2084,Engineering,447.00 
Nottinghamshire Fire and Rescue Service,103766,CERTAS,CERTAS,Operational Responses,5,202405,01/08/2023,9107583,"-11,655.48 ","11,655.48 ",3200,Fuel - Vehicle,1020,Stockhill,"9,712.90 "
Nottinghamshire Fire and Rescue Service,103766,CERTAS,CERTAS,Operational Responses,5,202405,14/08/2023,9107742,"-12,148.21 ","12,148.21 ",3200,Fuel - Vehicle,1008,Worksop,"10,123.51 "
Nottinghamshire Fire and Rescue Service,103766,CERTAS,CERTAS,Operational Responses,5,202405,16/08/2023,9107765,"-10,359.83 ","10,359.83 ",3200,Fuel - Vehicle,1019,West Bridgford,"8,633.19 "
Nottinghamshire Fire and Rescue Service,103766,CERTAS,CERTAS,Operational Responses,5,202405,16/08/2023,9107766,"-10,465.90 ","10,465.90 ",3200,Fuel - Vehicle,1029,Highfields Station,"8,721.58 "
Nottinghamshire Fire and Rescue Service,103766,CERTAS,CERTAS,Operational Responses,5,202405,16/08/2023,9107767,"-11,031.30 ","11,031.30 ",3200,Fuel - Vehicle,1012,Retford,"9,192.75 "
Nottinghamshire Fire and Rescue Service,103766,CERTAS,CERTAS,Operational Responses,5,202405,23/08/2023,9107903,"-1,767.74 ","1,767.74 ",3200,Fuel - Vehicle,1011,Misterton,"1,473.12 "
Nottinghamshire Fire and Rescue Service,103766,CERTAS,CERTAS,Operational Responses,5,202405,27/07/2023,9107936,"-10,936.34 ","10,936.34 ",3200,Fuel - Vehicle,1027,Carlton,"9,113.62 "
Nottinghamshire Fire and Rescue Service,103942,The Lodge Tyre Co. Limited,The Lodge Tyre Co. Limited,Management & Support Services,5,202405,30/06/2023,9107615,"-5,979.00 ","5,979.00 ",3202,Tyres,2084,Engineering,"4,982.52 "
Nottinghamshire Fire and Rescue Service,104140,Wheely-Safe Limited,Wheely-Safe Limited,Management & Support Services,5,202405,14/08/2023,9107730,"-4,741.80 ","4,741.80 ",3202,Tyres,2084,Engineering,"3,951.50 "
Nottinghamshire Fire and Rescue Service,103943,Teletrac Navman (UK) Limited,Teletrac Navman (UK) Limited,Management & Support Services,5,202405,01/08/2023,9107495,"-1,071.96 ","1,071.96 ",3203,Motor Tax / Licenses,2084,Engineering,893.30 
Nottinghamshire Fire and Rescue Service,102207,Scania (Great Britain) Ltd,Scania (Great Britain) Ltd,Management & Support Services,1,202405,01/08/2023,9107566,"-2,092.80 ","2,092.80 ",3203,Motor Tax / Licenses,2084,Engineering,"1,744.00 "
Nottinghamshire Fire and Rescue Service,100321,Drivercheck Ltd,Drivercheck Ltd,Management & Support Services,1,202405,31/07/2023,9107690,-620.10 ,620.10 ,3203,Motor Tax / Licenses,2084,Engineering,516.75 
Nottinghamshire Fire and Rescue Service,100321,Drivercheck Ltd,Drivercheck Ltd,Management & Support Services,1,202405,30/06/2023,9107762,-417.60 ,417.60 ,3203,Motor Tax / Licenses,2084,Engineering,348.00 
Nottinghamshire Fire and Rescue Service,104196,Central Cars Nottingham Limited,Central Cars Nottingham Limited,Management & Support Services,5,202405,17/07/2023,9107486,-331.20 ,331.20 ,3504,Public Transport,2054,Equalities Team,276.00 
Nottinghamshire Fire and Rescue Service,103443,Terberg DTS UK Limited,Terberg DTS UK Limited,Management & Support Services,5,202405,26/07/2023,9107510,"-1,802.28 ","1,802.28 ",4000,Operational Equipment Purchase,2084,Engineering,"1,501.90 "
Nottinghamshire Fire and Rescue Service,103443,Terberg DTS UK Limited,Terberg DTS UK Limited,Management & Support Services,5,202405,26/07/2023,9107511,-275.16 ,275.16 ,4000,Operational Equipment Purchase,2084,Engineering,229.30 
Nottinghamshire Fire and Rescue Service,103443,Terberg DTS UK Limited,Terberg DTS UK Limited,Management & Support Services,5,202405,26/07/2023,9107512,-455.03 ,455.03 ,4000,Operational Equipment Purchase,2084,Engineering,379.19 
Nottinghamshire Fire and Rescue Service,103443,Terberg DTS UK Limited,Terberg DTS UK Limited,Management & Support Services,5,202405,26/07/2023,9107536,-504.00 ,504.00 ,4000,Operational Equipment Purchase,2084,Engineering,420.00 
Nottinghamshire Fire and Rescue Service,103443,Terberg DTS UK Limited,Terberg DTS UK Limited,Management & Support Services,5,202405,26/07/2023,9107540,-374.45 ,374.45 ,4000,Operational Equipment Purchase,2084,Engineering,312.04 
Nottinghamshire Fire and Rescue Service,103443,Terberg DTS UK Limited,Terberg DTS UK Limited,Management & Support Services,5,202405,26/07/2023,9107541,-301.26 ,301.26 ,4000,Operational Equipment Purchase,2084,Engineering,251.05 
Nottinghamshire Fire and Rescue Service,103443,Terberg DTS UK Limited,Terberg DTS UK Limited,Management & Support Services,5,202405,28/07/2023,9107543,"-1,023.07 ","1,023.07 ",4000,Operational Equipment Purchase,2084,Engineering,852.56 
Nottinghamshire Fire and Rescue Service,102309,Walter Frank & Sons Limited,Walter Frank & Sons Limited,Management & Support Services,1,202405,03/08/2023,9107617,-542.06 ,542.06 ,4000,Operational Equipment Purchase,2084,Engineering,18.52 
Nottinghamshire Fire and Rescue Service,102309,Walter Frank & Sons Limited,Walter Frank & Sons Limited,Management & Support Services,1,202405,03/08/2023,9107617,-542.06 ,542.06 ,4000,Operational Equipment Purchase,2084,Engineering,433.20 
Nottinghamshire Fire and Rescue Service,103443,Terberg DTS UK Limited,Terberg DTS UK Limited,Management & Support Services,5,202405,15/08/2023,9107870,-266.63 ,266.63 ,4000,Operational Equipment Purchase,2084,Engineering,222.19 
Nottinghamshire Fire and Rescue Service,103443,Terberg DTS UK Limited,Terberg DTS UK Limited,Management & Support Services,5,202405,15/08/2023,9107871,-271.15 ,271.15 ,4000,Operational Equipment Purchase,2084,Engineering,225.96 
Nottinghamshire Fire and Rescue Service,103443,Terberg DTS UK Limited,Terberg DTS UK Limited,Management & Support Services,5,202405,15/08/2023,9107872,-271.15 ,271.15 ,4000,Operational Equipment Purchase,2084,Engineering,225.96 
Nottinghamshire Fire and Rescue Service,104128,LeasePlan UK Limited,LeasePlan UK Limited,Management & Support Services,5,202405,28/06/2023,9107894,"-1,107.78 ","1,107.78 ",4000,Operational Equipment Purchase,2068,Prevention,923.16 
Nottinghamshire Fire and Rescue Service,104128,LeasePlan UK Limited,LeasePlan UK Limited,Management & Support Services,5,202405,26/07/2023,9107895,"-1,107.78 ","1,107.78 ",4000,Operational Equipment Purchase,2068,Prevention,923.16 
Nottinghamshire Fire and Rescue Service,104128,LeasePlan UK Limited,LeasePlan UK Limited,Management & Support Services,5,202405,09/08/2023,9107896,-514.32 ,514.32 ,4000,Operational Equipment Purchase,2068,Prevention,428.61 
Nottinghamshire Fire and Rescue Service,102119,Radiocoms Systems Ltd,Radiocoms Systems Ltd,Management & Support Services,1,202405,23/08/2023,9107932,-278.86 ,278.86 ,4000,Operational Equipment Purchase,2084,Engineering,232.38 
Nottinghamshire Fire and Rescue Service,103443,Terberg DTS UK Limited,Terberg DTS UK Limited,Management & Support Services,5,202405,30/08/2023,9107933,"-1,706.47 ","1,706.47 ",4000,Operational Equipment Purchase,2084,Engineering,"1,422.06 "
Nottinghamshire Fire and Rescue Service,103443,Terberg DTS UK Limited,Terberg DTS UK Limited,Management & Support Services,5,202405,30/08/2023,9107934,"-1,706.47 ","1,706.47 ",4000,Operational Equipment Purchase,2084,Engineering,"1,422.06 "
Nottinghamshire Fire and Rescue Service,100279,S P Services,S P Services,Management & Support Services,1,202405,18/08/2023,9107877,"2,700.00 ","-2,700.00 ",4000,Operational Equipment Purchase,2084,Engineering,"-2,250.00 "
Nottinghamshire Fire and Rescue Service,104081,Wel Medical Ltd,Wel Medical Ltd,Management & Support Services,5,202405,02/08/2023,9107555,-873.54 ,873.54 ,4001,Operational Equipment (Medical),2084,Engineering,727.95 
Nottinghamshire Fire and Rescue Service,103094,Draeger Safety UK Limited,Draeger Safety UK Limited,Management & Support Services,5,202405,28/07/2023,9107542,"-6,300.00 ","6,300.00 ",4002,Breathing Apparatus,2084,Engineering,"5,250.00 "
Nottinghamshire Fire and Rescue Service,103094,Draeger Safety UK Limited,Draeger Safety UK Limited,Management & Support Services,5,202405,03/08/2023,9107593,"-4,800.00 ","4,800.00 ",4002,Breathing Apparatus,2084,Engineering,"4,000.00 "
Nottinghamshire Fire and Rescue Service,101803,Premier Hose Technologies Ltd,Premier Hose Technologies Ltd,Management & Support Services,1,202405,10/08/2023,9107702,-636.34 ,636.34 ,4004,Fire Hose and Couplings,2084,Engineering,530.28 
Nottinghamshire Fire and Rescue Service,102203,Flogas Britian Limited,Flogas Britian Limited,Management & Support Services,1,202405,15/08/2023,9107881,"-1,289.57 ","1,289.57 ",4006,Oxygen and Other Gases,2084,Engineering,"1,074.64 "
Nottinghamshire Fire and Rescue Service,103443,Terberg DTS UK Limited,Terberg DTS UK Limited,Management & Support Services,5,202405,28/07/2023,9107492,"-4,069.08 ","4,069.08 ",4007,Equipment Annual Service,2084,Engineering,"3,390.91 "
Nottinghamshire Fire and Rescue Service,103443,Terberg DTS UK Limited,Terberg DTS UK Limited,Management & Support Services,5,202405,26/07/2023,9107509,-808.03 ,808.03 ,4007,Equipment Annual Service,2084,Engineering,673.36 
Nottinghamshire Fire and Rescue Service,103443,Terberg DTS UK Limited,Terberg DTS UK Limited,Management & Support Services,5,202405,12/07/2023,9107516,-763.81 ,763.81 ,4007,Equipment Annual Service,2084,Engineering,636.51 
Nottinghamshire Fire and Rescue Service,103443,Terberg DTS UK Limited,Terberg DTS UK Limited,Management & Support Services,5,202405,26/07/2023,9107534,-732.70 ,732.70 ,4007,Equipment Annual Service,2084,Engineering,610.59 
Nottinghamshire Fire and Rescue Service,103443,Terberg DTS UK Limited,Terberg DTS UK Limited,Management & Support Services,5,202405,26/07/2023,9107535,"-1,540.74 ","1,540.74 ",4007,Equipment Annual Service,2084,Engineering,"1,283.95 "
Nottinghamshire Fire and Rescue Service,103443,Terberg DTS UK Limited,Terberg DTS UK Limited,Management & Support Services,5,202405,26/07/2023,9107537,-808.03 ,808.03 ,4007,Equipment Annual Service,2084,Engineering,673.36 
Nottinghamshire Fire and Rescue Service,103443,Terberg DTS UK Limited,Terberg DTS UK Limited,Management & Support Services,5,202405,26/07/2023,9107538,-808.03 ,808.03 ,4007,Equipment Annual Service,2084,Engineering,673.36 
Nottinghamshire Fire and Rescue Service,103443,Terberg DTS UK Limited,Terberg DTS UK Limited,Management & Support Services,5,202405,26/07/2023,9107539,-808.03 ,808.03 ,4007,Equipment Annual Service,2084,Engineering,673.36 
Nottinghamshire Fire and Rescue Service,103443,Terberg DTS UK Limited,Terberg DTS UK Limited,Management & Support Services,5,202405,28/07/2023,9107557,"-1,498.80 ","1,498.80 ",4007,Equipment Annual Service,2084,Engineering,"1,249.00 "
Nottinghamshire Fire and Rescue Service,103483,Risual Limited,Risual Limited,Management & Support Services,5,202405,27/07/2023,9107503,-270.00 ,270.00 ,4101,Computer Software Maintenance Contracts,2097,ICT Service Operations,225.00 
Nottinghamshire Fire and Rescue Service,103483,Risual Limited,Risual Limited,Management & Support Services,5,202405,22/06/2023,9107619,"-16,296.68 ","16,296.68 ",4101,Computer Software Maintenance Contracts,2097,ICT Service Operations,"13,580.57 "
Nottinghamshire Fire and Rescue Service,103483,Risual Limited,Risual Limited,Management & Support Services,5,202405,18/07/2023,9107620,"-15,876.24 ","15,876.24 ",4101,Computer Software Maintenance Contracts,2097,ICT Service Operations,"13,230.20 "
Nottinghamshire Fire and Rescue Service,103373,GTT (Interoute/Easynet),GTT (Interoute/Easynet),Management & Support Services,5,202405,25/07/2023,9107648,"-16,244.60 ","16,244.60 ",4101,Computer Software Maintenance Contracts,2095,ICT Digital Transformation,"13,537.17 "
Nottinghamshire Fire and Rescue Service,102261,Airwave Solutions Ltd,Airwave Solutions Ltd,Management & Support Services,1,202405,09/08/2023,9107701,-949.78 ,949.78 ,4101,Computer Software Maintenance Contracts,2097,ICT Service Operations,791.49 
Nottinghamshire Fire and Rescue Service,103373,GTT (Interoute/Easynet),GTT (Interoute/Easynet),Management & Support Services,5,202405,25/08/2023,9107919,"-17,691.49 ","17,691.49 ",4101,Computer Software Maintenance Contracts,2095,ICT Digital Transformation,"14,742.91 "
Nottinghamshire Fire and Rescue Service,102103,Ricoh Uk Ltd,Ricoh Uk Ltd,Management & Support Services,1,202405,07/07/2023,9107613,-522.41 ,522.41 ,4102,Computer Consumables,2097,ICT Service Operations,417.36 
Nottinghamshire Fire and Rescue Service,102103,Ricoh Uk Ltd,Ricoh Uk Ltd,Management & Support Services,1,202405,07/07/2023,9107613,-522.41 ,522.41 ,4105,Photocopier,2097,ICT Service Operations,17.98 
Nottinghamshire Fire and Rescue Service,102103,Ricoh Uk Ltd,Ricoh Uk Ltd,Management & Support Services,1,202405,07/07/2023,9107614,"-1,447.60 ","1,447.60 ",4105,Photocopier,2097,ICT Service Operations,"1,206.33 "
Nottinghamshire Fire and Rescue Service,102103,Ricoh Uk Ltd,Ricoh Uk Ltd,Management & Support Services,1,202405,07/07/2023,9107672,"-1,143.65 ","1,143.65 ",4105,Photocopier,2097,ICT Service Operations,953.04 
Nottinghamshire Fire and Rescue Service,102103,Ricoh Uk Ltd,Ricoh Uk Ltd,Management & Support Services,1,202405,07/07/2023,9107673,"-4,202.46 ","4,202.46 ",4105,Photocopier,2097,ICT Service Operations,"3,502.05 "
Nottinghamshire Fire and Rescue Service,100289,Home Office,Home Office,Management & Support Services,4,202405,27/07/2023,9107699,"-68,702.81 ","68,702.81 ",4204,FireLink Contract Charges,2097,ICT Service Operations,"57,252.34 "
Nottinghamshire Fire and Rescue Service,103483,Risual Limited,Risual Limited,Management & Support Services,5,202405,19/07/2023,9107591,"-1,870.70 ","1,870.70 ",4301,Phones - Landline,2097,ICT Service Operations,"1,558.92 "
Nottinghamshire Fire and Rescue Service,103092,Daisy Corporate Services Trading Limited,Daisy Corporate Services Trading Limited,Management & Support Services,1,202405,01/08/2023,9107592,"-1,825.20 ","1,825.20 ",4301,Phones - Landline,2096,ICT Service Transformation,"1,521.00 "
Nottinghamshire Fire and Rescue Service,103483,Risual Limited,Risual Limited,Management & Support Services,5,202405,17/08/2023,9107920,"-1,762.74 ","1,762.74 ",4301,Phones - Landline,2097,ICT Service Operations,"1,468.95 "
Nottinghamshire Fire and Rescue Service,104129,Oxford Safety Supplies,Oxford Safety Supplies,Management & Support Services,5,202405,08/02/2023,9107518,-492.44 ,492.44 ,4400,Clothing and Uniform,2086,Procurement,410.37 
Nottinghamshire Fire and Rescue Service,102306,Northern Diver (International) Ltd,Northern Diver (International) Ltd,Management & Support Services,1,202405,10/08/2023,9107714,-294.72 ,294.72 ,4402,Uniform and Protectice Clothing Repairs,2086,Procurement,9.60 
Nottinghamshire Fire and Rescue Service,102306,Northern Diver (International) Ltd,Northern Diver (International) Ltd,Management & Support Services,1,202405,10/08/2023,9107714,-294.72 ,294.72 ,4402,Uniform and Protectice Clothing Repairs,2086,Procurement,236.00 
Nottinghamshire Fire and Rescue Service,102376,Bristol Uniforms Limited,Bristol Uniforms Limited,Management & Support Services,1,202405,10/08/2023,9107839,"-13,569.30 ","13,569.30 ",4402,Uniform and Protectice Clothing Repairs,2086,Procurement,"3,318.58 "
Nottinghamshire Fire and Rescue Service,102376,Bristol Uniforms Limited,Bristol Uniforms Limited,Management & Support Services,1,202405,10/08/2023,9107839,"-13,569.30 ","13,569.30 ",4403,Laundry and Dry Cleaning,2086,Procurement,"7,989.17 "
Nottinghamshire Fire and Rescue Service,103678,Fitness Warehouse Limited t/a Gym Gear,Fitness Warehouse Limited t/a Gym Gear,Management & Support Services,5,202405,07/08/2023,9107688,-366.00 ,366.00 ,4510,Fitness Equipment,2061,Occupational Health & Fitness,250.00 
Nottinghamshire Fire and Rescue Service,104273,Fine Foods Exchange,Fine Foods Exchange,Management & Support Services,5,202405,14/08/2023,9107724,-918.00 ,918.00 ,4523,Catering/Food & Beverages,2059,Corporate Training,765.00 
Nottinghamshire Fire and Rescue Service,103695,Pulp Friction Smoothie Bar CIC,Pulp Friction Smoothie Bar CIC,Management & Support Services,5,202405,18/08/2023,9107840,-783.36 ,783.36 ,4523,Catering/Food & Beverages,2059,Corporate Training,652.80 
Nottinghamshire Fire and Rescue Service,104273,Fine Foods Exchange,Fine Foods Exchange,Management & Support Services,5,202405,13/08/2023,9107869,-734.40 ,734.40 ,4523,Catering/Food & Beverages,2059,Corporate Training,612.00 
Nottinghamshire Fire and Rescue Service,102495,Rosenbauer UK Plc,Rosenbauer UK Plc,Management & Support Services,1,202405,21/07/2023,9107549,-712.56 ,712.56 ,4534,Carriage and Packaging,2086,Procurement,9.80 
Nottinghamshire Fire and Rescue Service,102306,Northern Diver (International) Ltd,Northern Diver (International) Ltd,Management & Support Services,1,202405,31/07/2023,9107554,-340.20 ,340.20 ,4534,Carriage and Packaging,9999,Default,9.50 
Nottinghamshire Fire and Rescue Service,102508,Collins Nets Ltd,Collins Nets Ltd,Management & Support Services,1,202405,03/08/2023,9107606,-625.20 ,625.20 ,4534,Carriage and Packaging,2086,Procurement,9.00 
Nottinghamshire Fire and Rescue Service,102009,H S Walsh & Sons Limited,H S Walsh & Sons Limited,Management & Support Services,1,202405,08/08/2023,9107666,-315.78 ,315.78 ,4534,Carriage and Packaging,9999,Default,6.95 
Nottinghamshire Fire and Rescue Service,103678,Fitness Warehouse Limited t/a Gym Gear,Fitness Warehouse Limited t/a Gym Gear,Management & Support Services,5,202405,07/08/2023,9107688,-366.00 ,366.00 ,4534,Carriage and Packaging,2061,Occupational Health & Fitness,55.00 
Nottinghamshire Fire and Rescue Service,102306,Northern Diver (International) Ltd,Northern Diver (International) Ltd,Management & Support Services,1,202405,10/08/2023,9107754,-344.16 ,344.16 ,4534,Carriage and Packaging,9999,Default,9.50 
Nottinghamshire Fire and Rescue Service,104201,BlockaboxLimited,BlockaboxLimited,Management & Support Services,5,202405,18/08/2023,9107837,-385.00 ,385.00 ,4534,Carriage and Packaging,9999,Default,10.00 
Nottinghamshire Fire and Rescue Service,104081,Wel Medical Ltd,Wel Medical Ltd,Management & Support Services,5,202405,17/08/2023,9107838,-294.90 ,294.90 ,4534,Carriage and Packaging,9999,Default,5.95 
Nottinghamshire Fire and Rescue Service,103570,Intramark Limited,Intramark Limited,Management & Support Services,5,202405,16/08/2023,9107883,-994.36 ,994.36 ,4534,Carriage and Packaging,9999,Default,7.50 
Nottinghamshire Fire and Rescue Service,103589,Hot Pack International,Hot Pack International,Management & Support Services,5,202405,21/08/2023,9107900,"-1,779.90 ","1,779.90 ",4534,Carriage and Packaging,9999,Default,63.00 
Nottinghamshire Fire and Rescue Service,100301,Brissco Equipment Limited,Brissco Equipment Limited,Management & Support Services,1,202405,02/08/2023,9107556,"-3,589.80 ","3,589.80 ",4541,Hydrant Maintenance,2084,Engineering,11.50 
Nottinghamshire Fire and Rescue Service,100301,Brissco Equipment Limited,Brissco Equipment Limited,Management & Support Services,1,202405,02/08/2023,9107556,"-3,589.80 ","3,589.80 ",4541,Hydrant Maintenance,2084,Engineering,"2,980.00 "
Nottinghamshire Fire and Rescue Service,100301,Brissco Equipment Limited,Brissco Equipment Limited,Management & Support Services,1,202405,07/08/2023,9107580,-284.16 ,284.16 ,4541,Hydrant Maintenance,2084,Engineering,236.80 
Nottinghamshire Fire and Rescue Service,100301,Brissco Equipment Limited,Brissco Equipment Limited,Management & Support Services,1,202405,25/08/2023,9107931,"-3,285.72 ","3,285.72 ",4541,Hydrant Maintenance,2084,Engineering,11.50 
Nottinghamshire Fire and Rescue Service,100301,Brissco Equipment Limited,Brissco Equipment Limited,Management & Support Services,1,202405,25/08/2023,9107931,"-3,285.72 ","3,285.72 ",4541,Hydrant Maintenance,2084,Engineering,"2,726.60 "
Nottinghamshire Fire and Rescue Service,104115,Valentine Occupational Health Limited,Valentine Occupational Health Limited,Management & Support Services,5,202405,02/08/2023,9107687,-546.00 ,546.00 ,4552,Occupational Health Costs,2061,Occupational Health & Fitness,455.00 
Nottinghamshire Fire and Rescue Service,102964,Trinity Occupational and Public Health Solutions Ltd,Trinity Occupational and Public Health Solutions Ltd,Management & Support Services,5,202405,31/07/2023,9107722,"-4,500.00 ","4,500.00 ",4552,Occupational Health Costs,2061,Occupational Health & Fitness,"4,500.00 "
Nottinghamshire Fire and Rescue Service,104232,Dr Shaun Austin Ltd,Dr Shaun Austin Ltd,Management & Support Services,10,202405,28/07/2023,9107725,"-1,929.85 ","1,929.85 ",4552,Occupational Health Costs,2061,Occupational Health & Fitness,9.85 
Nottinghamshire Fire and Rescue Service,104232,Dr Shaun Austin Ltd,Dr Shaun Austin Ltd,Management & Support Services,10,202405,28/07/2023,9107725,"-1,929.85 ","1,929.85 ",4552,Occupational Health Costs,2061,Occupational Health & Fitness,"1,920.00 "
Nottinghamshire Fire and Rescue Service,104232,Dr Shaun Austin Ltd,Dr Shaun Austin Ltd,Management & Support Services,10,202405,18/08/2023,9107887,-969.85 ,969.85 ,4552,Occupational Health Costs,2061,Occupational Health & Fitness,9.85 
Nottinghamshire Fire and Rescue Service,104232,Dr Shaun Austin Ltd,Dr Shaun Austin Ltd,Management & Support Services,10,202405,18/08/2023,9107887,-969.85 ,969.85 ,4552,Occupational Health Costs,2061,Occupational Health & Fitness,960.00 
Nottinghamshire Fire and Rescue Service,103582,Softcat Limited,Softcat Limited,Management & Support Services,5,202405,16/06/2023,9107548,"-2,850.05 ","2,850.05 ",4554,Consultancy Fees - Non Estates Related,2058,HR Support,"2,375.04 "
Nottinghamshire Fire and Rescue Service,102033,Valuation Office Agency,Valuation Office Agency,Management & Support Services,1,202405,27/07/2023,9107572,"-6,000.00 ","6,000.00 ",4554,Consultancy Fees - Non Estates Related,2081,Finance,"5,000.00 "
Nottinghamshire Fire and Rescue Service,103582,Softcat Limited,Softcat Limited,Management & Support Services,5,202405,31/07/2023,9107716,"-1,640.63 ","1,640.63 ",4554,Consultancy Fees - Non Estates Related,2058,HR Support,"1,367.19 "
Nottinghamshire Fire and Rescue Service,103582,Softcat Limited,Softcat Limited,Management & Support Services,5,202405,31/07/2023,9107717,"-2,734.33 ","2,734.33 ",4554,Consultancy Fees - Non Estates Related,2058,HR Support,"2,278.61 "
Nottinghamshire Fire and Rescue Service,103275,Zellis,Zellis,Management & Support Services,5,202405,31/07/2023,9107602,"-1,104.97 ","1,104.97 ",4555,Disclosure Checks,2049,Professional Support,484.14 
Nottinghamshire Fire and Rescue Service,103275,Zellis,Zellis,Management & Support Services,5,202405,31/07/2023,9107602,"-1,104.97 ","1,104.97 ",4555,Disclosure Checks,2049,Professional Support,524.00 
Nottinghamshire Fire and Rescue Service,100055,Nottingham City Council,Nottingham City Council,Management & Support Services,4,202405,25/07/2023,9107718,-600.00 ,600.00 ,4556,Translation and Interpretation Services,2054,Equalities Team,500.00 
Nottinghamshire Fire and Rescue Service,100557,NCC Sundry Debtors,NCC Sundry Debtors,Management & Support Services,4,202405,10/08/2023,9107758,"-1,256.40 ","1,256.40 ",4556,Translation and Interpretation Services,2049,Professional Support,"1,047.00 "
Nottinghamshire Fire and Rescue Service,104282,Best Badges Ltd,Best Badges Ltd,Management & Support Services,5,202405,27/07/2023,9107485,-260.00 ,260.00 ,4583,Marketing and Publicity,2054,Equalities Team,216.67 
Nottinghamshire Fire and Rescue Service,101851,Complete Business Solutions Group Ltd,Complete Business Solutions Group Ltd,Management & Support Services,1,202405,15/08/2023,9107748,"-4,650.00 ","4,650.00 ",4583,Marketing and Publicity,2051,Corporate Communications,"4,650.00 "
Nottinghamshire Fire and Rescue Service,101851,Complete Business Solutions Group Ltd,Complete Business Solutions Group Ltd,Operational Responses,1,202405,17/08/2023,9107755,-448.80 ,448.80 ,4583,Marketing and Publicity,1027,Carlton,448.80 
Nottinghamshire Fire and Rescue Service,104284,Sarah Wilkinson Design,Sarah Wilkinson Design,Management & Support Services,10,202405,14/08/2023,9107884,-295.00 ,295.00 ,4583,Marketing and Publicity,2051,Corporate Communications,295.00 
Nottinghamshire Fire and Rescue Service,102073,B D Motor Spares,B D Motor Spares,Management & Support Services,1,202405,09/06/2023,9107502,"-6,204.00 ","6,204.00 ",4594,Training/ Teaching Equipment,2059,Corporate Training,220.00 
Nottinghamshire Fire and Rescue Service,102073,B D Motor Spares,B D Motor Spares,Management & Support Services,1,202405,09/06/2023,9107502,"-6,204.00 ","6,204.00 ",4594,Training/ Teaching Equipment,2059,Corporate Training,440.00 
Nottinghamshire Fire and Rescue Service,102073,B D Motor Spares,B D Motor Spares,Management & Support Services,1,202405,09/06/2023,9107502,"-6,204.00 ","6,204.00 ",4594,Training/ Teaching Equipment,2059,Corporate Training,"3,850.00 "
Nottinghamshire Fire and Rescue Service,102073,B D Motor Spares,B D Motor Spares,Management & Support Services,1,202405,07/08/2023,9107719,-720.00 ,720.00 ,4594,Training/ Teaching Equipment,2059,Corporate Training,600.00 
Nottinghamshire Fire and Rescue Service,100290,Lemaitre Ltd,Lemaitre Ltd,Management & Support Services,1,202405,05/04/2023,9107858,-410.16 ,410.16 ,4594,Training/ Teaching Equipment,2059,Corporate Training,25.00 
Nottinghamshire Fire and Rescue Service,100290,Lemaitre Ltd,Lemaitre Ltd,Management & Support Services,1,202405,05/04/2023,9107858,-410.16 ,410.16 ,4594,Training/ Teaching Equipment,2059,Corporate Training,316.80 
Nottinghamshire Fire and Rescue Service,100467,Kingsfield Computer Products Ltd,Kingsfield Computer Products Ltd,Management & Support Services,1,202405,17/08/2023,9107868,"-2,124.00 ","2,124.00 ",4594,Training/ Teaching Equipment,2059,Corporate Training,"1,770.00 "
Nottinghamshire Fire and Rescue Service,103849,Vision Support Services Ltd,Vision Support Services Ltd,Operational Responses,5,202405,04/08/2023,9107581,-584.28 ,584.28 ,4600,Community Safety Delivery Consumables,1012,Retford,486.90 
Nottinghamshire Fire and Rescue Service,103849,Vision Support Services Ltd,Vision Support Services Ltd,Operational Responses,5,202405,08/08/2023,9107603,-808.88 ,808.88 ,4600,Community Safety Delivery Consumables,1016,Newark,674.07 
Nottinghamshire Fire and Rescue Service,103849,Vision Support Services Ltd,Vision Support Services Ltd,Management & Support Services,5,202405,10/04/2023,9107772,"-1,101.42 ","1,101.42 ",4600,Community Safety Delivery Consumables,2068,Prevention,917.85 
Nottinghamshire Fire and Rescue Service,103849,Vision Support Services Ltd,Vision Support Services Ltd,Operational Responses,5,202405,22/08/2023,9107856,-587.42 ,587.42 ,4600,Community Safety Delivery Consumables,1005,Ashfield,489.52 
Nottinghamshire Fire and Rescue Service,103849,Vision Support Services Ltd,Vision Support Services Ltd,Operational Responses,5,202405,22/08/2023,9107882,-493.92 ,493.92 ,4600,Community Safety Delivery Consumables,1001,Mansfield,411.60 
Nottinghamshire Fire and Rescue Service,100856,Arthur J Gallagher,Arthur J Gallagher,Management & Support Services,1,202405,27/07/2023,9107533,"-3,000.00 ","3,000.00 ",4891,Insurance - Brokerage,2063,Risk Management & Insurance,"3,000.00 "
Nottinghamshire Fire and Rescue Service,104289,PP Motor Group Ltd,PP Motor Group Ltd,Management & Support Services,5,202405,17/07/2023,9107586,"-2,500.00 ","2,500.00 ",4893,Insurance - Uninsured Losses/ Excess,2084,Engineering,"2,500.00 "
Nottinghamshire Fire and Rescue Service,101712,Browne Jacobson LLP,Browne Jacobson LLP,Management & Support Services,1,202405,28/06/2023,9107621,"-1,498.68 ","1,498.68 ",7002,Legal Services,2058,HR Support,101.40 
Nottinghamshire Fire and Rescue Service,101712,Browne Jacobson LLP,Browne Jacobson LLP,Management & Support Services,1,202405,28/06/2023,9107621,"-1,498.68 ","1,498.68 ",7002,Legal Services,2087,Estates Department (Previously Premises),4.00 
Nottinghamshire Fire and Rescue Service,101712,Browne Jacobson LLP,Browne Jacobson LLP,Management & Support Services,1,202405,28/06/2023,9107621,"-1,498.68 ","1,498.68 ",7002,Legal Services,2087,Estates Department (Previously Premises),"1,143.50 "
Nottinghamshire Fire and Rescue Service,100878,Nottinghamshire County Council,Nottinghamshire County Council,Management & Support Services,4,202405,16/08/2023,9107759,"-8,553.60 ","8,553.60 ",7500,Treasury Services,1086,Corporate Core,"7,128.00 "
Nottinghamshire Fire and Rescue Service,102376,Bristol Uniforms Limited,Bristol Uniforms Limited,Management & Support Services,1,202405,27/07/2023,9107484,"-1,559.86 ","1,559.86 ",B314,Stock,9999,Default,"1,299.88 "
Nottinghamshire Fire and Rescue Service,102376,Bristol Uniforms Limited,Bristol Uniforms Limited,Management & Support Services,1,202405,27/07/2023,9107506,"-1,559.86 ","1,559.86 ",B314,Stock,9999,Default,"1,299.88 "
Nottinghamshire Fire and Rescue Service,102190,Dot Promotional Clothing,Dot Promotional Clothing,Management & Support Services,1,202405,31/07/2023,9107530,-522.00 ,522.00 ,B314,Stock,9999,Default,435.00 
Nottinghamshire Fire and Rescue Service,102376,Bristol Uniforms Limited,Bristol Uniforms Limited,Management & Support Services,1,202405,01/08/2023,9107532,"-7,142.40 ","7,142.40 ",B314,Stock,9999,Default,"5,952.00 "
Nottinghamshire Fire and Rescue Service,100299,FireAngel Safety Technology Limited,FireAngel Safety Technology Limited,Management & Support Services,1,202405,31/07/2023,9107544,"-17,936.40 ","17,936.40 ",B314,Stock,9999,Default,"14,947.00 "
Nottinghamshire Fire and Rescue Service,102495,Rosenbauer UK Plc,Rosenbauer UK Plc,Management & Support Services,1,202405,21/07/2023,9107549,-712.56 ,712.56 ,B314,Stock,9999,Default,584.00 
Nottinghamshire Fire and Rescue Service,100357,Eastern Shires Purchasing Organisation,Eastern Shires Purchasing Organisation,Management & Support Services,1,202405,25/07/2023,9107551,"-1,276.62 ","1,276.62 ",B314,Stock,9999,Default,"1,063.85 "
Nottinghamshire Fire and Rescue Service,102306,Northern Diver (International) Ltd,Northern Diver (International) Ltd,Management & Support Services,1,202405,31/07/2023,9107554,-340.20 ,340.20 ,B314,Stock,9999,Default,274.00 
Nottinghamshire Fire and Rescue Service,103981,Joseph Gleave and Son Limited -Joseph Gleave and Son (Holdings) Limited,Joseph Gleave and Son Limited -Joseph Gleave and Son (Holdings) Limited,Management & Support Services,5,202405,04/08/2023,9107596,-626.30 ,626.30 ,B314,Stock,9999,Default,521.92 
Nottinghamshire Fire and Rescue Service,101890,Survitec Service & Distribution Ltd,Survitec Service & Distribution Ltd,Management & Support Services,1,202405,03/08/2023,9107598,-334.80 ,334.80 ,B314,Stock,9999,Default,279.00 
Nottinghamshire Fire and Rescue Service,102376,Bristol Uniforms Limited,Bristol Uniforms Limited,Management & Support Services,1,202405,02/08/2023,9107605,-295.60 ,295.60 ,B314,Stock,9999,Default,246.33 
Nottinghamshire Fire and Rescue Service,102508,Collins Nets Ltd,Collins Nets Ltd,Management & Support Services,1,202405,03/08/2023,9107606,-625.20 ,625.20 ,B314,Stock,9999,Default,512.00 
Nottinghamshire Fire and Rescue Service,102508,Collins Nets Ltd,Collins Nets Ltd,Management & Support Services,1,202405,03/08/2023,9107607,-844.80 ,844.80 ,B314,Stock,9999,Default,704.00 
Nottinghamshire Fire and Rescue Service,102101,H-Squared,H-Squared,Management & Support Services,1,202405,08/08/2023,9107611,-280.90 ,280.90 ,B314,Stock,9999,Default,234.08 
Nottinghamshire Fire and Rescue Service,102376,Bristol Uniforms Limited,Bristol Uniforms Limited,Management & Support Services,1,202405,07/06/2023,9107618,"-14,308.10 ","14,308.10 ",B314,Stock,9999,Default,"11,923.42 "
Nottinghamshire Fire and Rescue Service,102376,Bristol Uniforms Limited,Bristol Uniforms Limited,Management & Support Services,1,202405,07/08/2023,9107663,"-1,617.53 ","1,617.53 ",B314,Stock,9999,Default,"1,347.94 "
Nottinghamshire Fire and Rescue Service,102009,H S Walsh & Sons Limited,H S Walsh & Sons Limited,Management & Support Services,1,202405,08/08/2023,9107666,-315.78 ,315.78 ,B314,Stock,9999,Default,256.20 
Nottinghamshire Fire and Rescue Service,103981,Joseph Gleave and Son Limited -Joseph Gleave and Son (Holdings) Limited,Joseph Gleave and Son Limited -Joseph Gleave and Son (Holdings) Limited,Management & Support Services,5,202405,11/08/2023,9107694,-372.84 ,372.84 ,B314,Stock,9999,Default,310.70 
Nottinghamshire Fire and Rescue Service,103981,Joseph Gleave and Son Limited -Joseph Gleave and Son (Holdings) Limited,Joseph Gleave and Son Limited -Joseph Gleave and Son (Holdings) Limited,Management & Support Services,5,202405,11/08/2023,9107695,-516.24 ,516.24 ,B314,Stock,9999,Default,430.20 
Nottinghamshire Fire and Rescue Service,103981,Joseph Gleave and Son Limited -Joseph Gleave and Son (Holdings) Limited,Joseph Gleave and Son Limited -Joseph Gleave and Son (Holdings) Limited,Management & Support Services,5,202405,11/08/2023,9107696,"-1,470.67 ","1,470.67 ",B314,Stock,9999,Default,"1,225.56 "
Nottinghamshire Fire and Rescue Service,102376,Bristol Uniforms Limited,Bristol Uniforms Limited,Management & Support Services,1,202405,14/08/2023,9107723,-933.26 ,933.26 ,B314,Stock,9999,Default,777.72 
Nottinghamshire Fire and Rescue Service,102376,Bristol Uniforms Limited,Bristol Uniforms Limited,Management & Support Services,1,202405,14/08/2023,9107737,-633.94 ,633.94 ,B314,Stock,9999,Default,528.28 
Nottinghamshire Fire and Rescue Service,103242,New Balance Athletic Shoes (UK) Limited,New Balance Athletic Shoes (UK) Limited,Management & Support Services,5,202405,15/08/2023,9107744,-456.05 ,456.05 ,B314,Stock,9999,Default,380.04 
Nottinghamshire Fire and Rescue Service,100357,Eastern Shires Purchasing Organisation,Eastern Shires Purchasing Organisation,Management & Support Services,1,202405,14/08/2023,9107749,-595.98 ,595.98 ,B314,Stock,9999,Default,496.65 
Nottinghamshire Fire and Rescue Service,100357,Eastern Shires Purchasing Organisation,Eastern Shires Purchasing Organisation,Management & Support Services,1,202405,08/08/2023,9107750,"-2,461.08 ","2,461.08 ",B314,Stock,9999,Default,"2,050.90 "
Nottinghamshire Fire and Rescue Service,100357,Eastern Shires Purchasing Organisation,Eastern Shires Purchasing Organisation,Management & Support Services,1,202405,14/08/2023,9107753,"-1,025.46 ","1,025.46 ",B314,Stock,9999,Default,854.55 
Nottinghamshire Fire and Rescue Service,102306,Northern Diver (International) Ltd,Northern Diver (International) Ltd,Management & Support Services,1,202405,10/08/2023,9107754,-344.16 ,344.16 ,B314,Stock,9999,Default,277.30 
Nottinghamshire Fire and Rescue Service,101190,Lyon Equipment Limited,Lyon Equipment Limited,Management & Support Services,1,202405,18/08/2023,9107763,-257.28 ,257.28 ,B314,Stock,9999,Default,214.40 
Nottinghamshire Fire and Rescue Service,103242,New Balance Athletic Shoes (UK) Limited,New Balance Athletic Shoes (UK) Limited,Management & Support Services,5,202405,16/08/2023,9107768,"-1,786.19 ","1,786.19 ",B314,Stock,9999,Default,"1,488.49 "
Nottinghamshire Fire and Rescue Service,102376,Bristol Uniforms Limited,Bristol Uniforms Limited,Management & Support Services,1,202405,16/08/2023,9107769,"-2,456.90 ","2,456.90 ",B314,Stock,9999,Default,"2,047.42 "
Nottinghamshire Fire and Rescue Service,103242,New Balance Athletic Shoes (UK) Limited,New Balance Athletic Shoes (UK) Limited,Management & Support Services,5,202405,17/08/2023,9107776,"-1,805.19 ","1,805.19 ",B314,Stock,9999,Default,"1,504.32 "
Nottinghamshire Fire and Rescue Service,104201,BlockaboxLimited,BlockaboxLimited,Management & Support Services,5,202405,18/08/2023,9107837,-385.00 ,385.00 ,B314,Stock,9999,Default,375.00 
Nottinghamshire Fire and Rescue Service,104081,Wel Medical Ltd,Wel Medical Ltd,Management & Support Services,5,202405,17/08/2023,9107838,-294.90 ,294.90 ,B314,Stock,9999,Default,239.80 
Nottinghamshire Fire and Rescue Service,101851,Complete Business Solutions Group Ltd,Complete Business Solutions Group Ltd,Management & Support Services,1,202405,19/07/2023,9107848,"-2,083.56 ","2,083.56 ",B314,Stock,9999,Default,"1,736.30 "
Nottinghamshire Fire and Rescue Service,102078,Thomas Kneale & Co Ltd,Thomas Kneale & Co Ltd,Management & Support Services,1,202405,18/08/2023,9107857,"-1,020.60 ","1,020.60 ",B314,Stock,9999,Default,850.50 
Nottinghamshire Fire and Rescue Service,103570,Intramark Limited,Intramark Limited,Management & Support Services,5,202405,16/08/2023,9107883,-994.36 ,994.36 ,B314,Stock,9999,Default,821.13 
Nottinghamshire Fire and Rescue Service,100357,Eastern Shires Purchasing Organisation,Eastern Shires Purchasing Organisation,Management & Support Services,1,202405,21/08/2023,9107889,-606.30 ,606.30 ,B314,Stock,9999,Default,505.25 
Nottinghamshire Fire and Rescue Service,103589,Hot Pack International,Hot Pack International,Management & Support Services,5,202405,21/08/2023,9107900,"-1,779.90 ","1,779.90 ",B314,Stock,9999,Default,"1,704.30 "
Nottinghamshire Fire and Rescue Service,102190,Dot Promotional Clothing,Dot Promotional Clothing,Management & Support Services,1,202405,16/08/2023,9107905,"-1,180.80 ","1,180.80 ",B314,Stock,9999,Default,984.00 
Nottinghamshire Fire and Rescue Service,102190,Dot Promotional Clothing,Dot Promotional Clothing,Management & Support Services,1,202405,24/08/2023,9107906,-432.00 ,432.00 ,B314,Stock,9999,Default,360.00 
Nottinghamshire Fire and Rescue Service,102190,Dot Promotional Clothing,Dot Promotional Clothing,Management & Support Services,1,202405,24/08/2023,9107907,-400.20 ,400.20 ,B314,Stock,9999,Default,333.50 
Nottinghamshire Fire and Rescue Service,102190,Dot Promotional Clothing,Dot Promotional Clothing,Management & Support Services,1,202405,24/08/2023,9107909,-261.00 ,261.00 ,B314,Stock,9999,Default,217.50 
Nottinghamshire Fire and Rescue Service,102190,Dot Promotional Clothing,Dot Promotional Clothing,Management & Support Services,1,202405,24/08/2023,9107910,-400.20 ,400.20 ,B314,Stock,9999,Default,333.50 
Nottinghamshire Fire and Rescue Service,102190,Dot Promotional Clothing,Dot Promotional Clothing,Management & Support Services,1,202405,24/08/2023,9107927,"-1,140.48 ","1,140.48 ",B314,Stock,9999,Default,950.40 
Nottinghamshire Fire and Rescue Service,102364,Woodway Engineering Limited,Woodway Engineering Limited,Management & Support Services,1,202405,30/06/2023,9107500,"-20,242.08 ","20,242.08 ",C001,Vehicle Purchase,4001,Light Vehicle Replacement,"16,868.40 "
Nottinghamshire Fire and Rescue Service,104213,NightSearcher LTD,NightSearcher LTD,Management & Support Services,5,202405,17/08/2023,9107833,"-5,885.04 ","5,885.04 ",C001,Vehicle Purchase,4000,Rescue Pump Replacement,"4,904.20 "
Nottinghamshire Fire and Rescue Service,104268,Ukplanettools,Ukplanettools,Management & Support Services,5,202405,25/07/2023,9107859,"-1,296.00 ","1,296.00 ",C001,Vehicle Purchase,2084,Engineering,"1,080.00 "
Nottinghamshire Fire and Rescue Service,102495,Rosenbauer UK Plc,Rosenbauer UK Plc,Management & Support Services,1,202405,16/08/2023,9107897,"-11,593.80 ","11,593.80 ",C001,Vehicle Purchase,2084,Engineering,"9,661.50 "
Nottinghamshire Fire and Rescue Service,101867,Nottinghamshire Police and Crime Commissioner,Nottinghamshire Police and Crime Commissioner,Management & Support Services,4,202405,19/06/2023,9107498,"-100,884.11 ","100,884.11 ",C101,Building Works,4102,Strategic New Build Projects,"100,884.11 "
Nottinghamshire Fire and Rescue Service,104180,G.F. Tomlinson Building Limited,G.F. Tomlinson Building Limited,Management & Support Services,5,202405,21/07/2023,9107573,"-101,907.40 ","101,907.40 ",C101,Building Works,4102,Strategic New Build Projects,"84,922.83 "
Nottinghamshire Fire and Rescue Service,102280,Amptron Electrical Services,Amptron Electrical Services,Management & Support Services,1,202405,07/07/2023,9107507,"-9,046.04 ","9,046.04 ",C103,External Works,4100,Fire Station Improvement & Refurbishments,"7,538.37 "
Nottinghamshire Fire and Rescue Service,102757,Turner and Townsend Project Management,Turner and Townsend Project Management,Management & Support Services,5,202405,29/08/2023,9107921,"-2,344.19 ","2,344.19 ",C150,Professional Fees - Architects,4102,Strategic New Build Projects,"1,953.49 "
Nottinghamshire Fire and Rescue Service,104229,YMD Boon Ltd,YMD Boon Ltd,Management & Support Services,5,202405,23/08/2023,9107913,"-8,948.40 ","8,948.40 ",C154,Professional Fees - Design,4100,Fire Station Improvement & Refurbishments,"7,457.00 "
Nottinghamshire Fire and Rescue Service,101712,Browne Jacobson LLP,Browne Jacobson LLP,Management & Support Services,1,202405,27/07/2023,9107661,-433.56 ,433.56 ,C157,Professional Fees - Legal,4102,Strategic New Build Projects,361.30 
Nottinghamshire Fire and Rescue Service,104227,WCL (UK) Ltd trading as Everything ICT,WCL (UK) Ltd trading as Everything ICT,Management & Support Services,5,202405,09/08/2023,9107689,"-19,148.55 ","19,148.55 ",C200,Hardware,4300,ICT Capital Programme,"15,957.12 "
Nottinghamshire Fire and Rescue Service,103887,PageOne Communications Limited - Part Of Capita plc,PageOne Communications Limited - Part Of Capita plc,Management & Support Services,5,202405,17/08/2023,9107773,"-1,342.80 ","1,342.80 ",C200,Hardware,4300,ICT Capital Programme,"1,119.00 "
Nottinghamshire Fire and Rescue Service,102979,Planet IT Limited,Planet IT Limited,Management & Support Services,5,202405,23/08/2023,9107888,"-1,890.72 ","1,890.72 ",C200,Hardware,4300,ICT Capital Programme,"1,575.60 "
Nottinghamshire Fire and Rescue Service,103483,Risual Limited,Risual Limited,Management & Support Services,5,202405,30/06/2023,9107914,"-4,622.45 ","4,622.45 ",C200,Hardware,4300,ICT Capital Programme,"3,852.04 "
Nottinghamshire Fire and Rescue Service,103483,Risual Limited,Risual Limited,Management & Support Services,5,202405,31/07/2023,9107916,-264.10 ,264.10 ,C200,Hardware,4300,ICT Capital Programme,220.08 
Nottinghamshire Fire and Rescue Service,103483,Risual Limited,Risual Limited,Management & Support Services,5,202405,21/07/2023,9107494,"-1,140.00 ","1,140.00 ",C202,Consultancy and Services,4300,ICT Capital Programme,950.00 
Nottinghamshire Fire and Rescue Service,103483,Risual Limited,Risual Limited,Management & Support Services,5,202405,30/06/2023,9107515,"-1,140.00 ","1,140.00 ",C202,Consultancy and Services,4300,ICT Capital Programme,950.00 
Nottinghamshire Fire and Rescue Service,103483,Risual Limited,Risual Limited,Management & Support Services,5,202405,21/07/2023,9107588,"-1,140.00 ","1,140.00 ",C202,Consultancy and Services,4300,ICT Capital Programme,950.00 
Nottinghamshire Fire and Rescue Service,103483,Risual Limited,Risual Limited,Management & Support Services,5,202405,14/07/2023,9107600,"-2,280.00 ","2,280.00 ",C202,Consultancy and Services,4300,ICT Capital Programme,"1,900.00 "
Nottinghamshire Fire and Rescue Service,103667,NTA Monitor Ltd,NTA Monitor Ltd,Management & Support Services,5,202405,19/06/2023,9107917,-480.00 ,480.00 ,C202,Consultancy and Services,4300,ICT Capital Programme,400.00 
,***Note:,,,,,,,,,,,,,,
,"***The report shows the payment in its original form. This means disaggregating many invoices into individual component payments many of which will be less than £250 in their own right. This explains why you will see many of the amounts showing less than £250. They were, however, paid as part of an invoice of £250 or more.

**** The Invoice date is the date issued on the invoice. This date may fall out of the date range for the report. In most cases this is due to the invoice being received  late.",,,,,,,,,,,,,,